Service,Expense Subtype,Merchant Name,Expense Invoice Date,Total Expense
CORPORATE AFFAIRS,Travel/Subsistence,GWR WEBSALES,02/01/2018,-142.40
DAY CENTRES,Financial Services,CASH ADVANCE FEE,03/01/2018,11.80
DAY CENTRES,Financial Services,ROYAL BANK UK /,03/01/2018,400.00
REVENUE & BENEFITS,Legal Services-Other,HMCOURTS-SERVICE.G,03/01/2018,"5,667.00"
BUSINESS SUPPORT,Charges and Penalties,SQ *VAN FOR YOU REMOVALS,04/01/2018,154.00
BUSINESS SUPPORT,Use of Public Transport,OYSTER RENEW WEB,04/01/2018,80.00
BUSINESS SUPPORT,Use of Public Transport,OYSTER RENEW WEB,04/01/2018,30.00
BUSINESS SUPPORT,Use of Public Transport,OYSTER RENEW WEB,04/01/2018,30.00
CHILDREN LOOKED AFTER,Travel/Subsistence,OYSTER AUTOTOPUP,04/01/2018,20.00
CHILDREN LOOKED AFTER,Travel/Subsistence,OYSTER AUTOTOPUP,04/01/2018,40.00
CHILDREN LOOKED AFTER,Travel/Subsistence,OYSTER BUS AUTOTOP,04/01/2018,20.00
CHILDREN LOOKED AFTER,Travel/Subsistence,OYSTER RENEW WEB,04/01/2018,20.00
CHILDREN LOOKED AFTER,Travel/Subsistence,OYSTER RENEW WEB,04/01/2018,20.00
LIBRARIES & ARCHIVE,Education-Library Books,Amazon UK Marketplace,04/01/2018,6.00
LIBRARIES & ARCHIVE,Education-Library Books,Amazon UK Marketplace,04/01/2018,15.55
LIBRARIES & ARCHIVE,Education-Library Books,Amazon UK Marketplace,04/01/2018,15.39
LIBRARIES & ARCHIVE,Education-Library Books,Amazon UK Marketplace,04/01/2018,9.72
LIBRARIES & ARCHIVE,Education-Library Books,Amazon UK Retail,04/01/2018,4.99
LIBRARIES & ARCHIVE,Education-Library Books,Amazon UK Retail,04/01/2018,20.89
LIBRARIES & ARCHIVE,Education-Library Books,Amazon UK Retail,04/01/2018,20.29
POLICY & COMMUNICATIONS,Facilities-Advertising,FACEBK E7TXYDER62,04/01/2018,60.82
POLICY & COMMUNICATIONS,Facilities-Advertising,FACEBK L7TXYDER62,04/01/2018,0.87
POLICY & COMMUNICATIONS,IT Services,AMAZON MKTPLACE PMTS,04/01/2018,136.61
POLICY & COMMUNICATIONS,IT Services,NATIONBUILDER,04/01/2018,167.98
POLICY & COMMUNICATIONS,IT Services,NATIONBUILDER,04/01/2018,67.90
POLICY & COMMUNICATIONS,IT Services,PANTHEON SYSTEMS INC,04/01/2018,19.06
SCHOOL & EDUCATION IMPROVEMENT SERVICE,Education-Library Books,Amazon UK Marketplace,04/01/2018,113.67
CHILDREN LOOKED AFTER,Financial Services,CASH ADVANCE FEE,05/01/2018,11.80
CHILDREN LOOKED AFTER,Financial Services,SANTANDER PLC (UK),05/01/2018,400.00
CHILDREN LOOKED AFTER,Travel/Subsistence,FLYBE CR19P9/267407,05/01/2018,165.60
FINANCIAL PLANNING AND MANAGEMENT,Travel/Subsistence,OYSTER AUTOTOPUP,05/01/2018,20.00
LIBRARIES & ARCHIVE,Books/Publications/Resources,WH SMITH,05/01/2018,250.00
LIBRARIES & ARCHIVE,Books/Publications/Resources,WH SMITH,05/01/2018,237.50
LIBRARIES & ARCHIVE,Facilities-Advertising,WH SMITH,05/01/2018,13.20
PROPERTY & FINANCIAL TRANSACTION SERVICES,Travel/Subsistence,OYSTER RENEW WEB,05/01/2018,50.00
PROPERTY & FINANCIAL TRANSACTION SERVICES,Travel/Subsistence,OYSTER RENEW WEB,05/01/2018,-30.00
QUALITY ASSURANCE & PERFORMANCE,Consultancy-Business,ARMOUR LOCK AND SAFE,05/01/2018,10.00
QUALITY ASSURANCE & PERFORMANCE,Travel/Subsistence,OYSTER AUTOTOPUP,05/01/2018,40.00
QUALITY ASSURANCE & PERFORMANCE,Travel/Subsistence,OYSTER AUTOTOPUP,05/01/2018,40.00
QUALITY ASSURANCE & PERFORMANCE,Travel/Subsistence,OYSTER AUTOTOPUP,05/01/2018,40.00
QUALITY ASSURANCE & PERFORMANCE,Travel/Subsistence,OYSTER AUTOTOPUP,05/01/2018,40.00
QUALITY ASSURANCE & PERFORMANCE,Travel/Subsistence,OYSTER BUS AUTOTOP,05/01/2018,40.00
QUALITY ASSURANCE & PERFORMANCE,Travel/Subsistence,OYSTER BUS AUTOTOP,05/01/2018,40.00
QUALITY ASSURANCE & PERFORMANCE,Travel/Subsistence,OYSTER RENEW WEB,05/01/2018,25.00
QUALITY ASSURANCE & PERFORMANCE,Travel/Subsistence,TRAINLINE,05/01/2018,96.90
QUALITY ASSURANCE & PERFORMANCE,Travel/Subsistence,TRAINLINE,05/01/2018,38.25
DAY CENTRES,Travel/Subsistence,OYSTER BUS AUTOTOP,06/01/2018,20.00
NEIGHBOURHOODS,Food/refreshment - meetings,SAINSBURYS S/MKTS,06/01/2018,8.65
MENTAL HEALTH,Facilities-Printing,Amazon UK Retail,07/01/2018,87.99
MENTAL HEALTH,Taxi Fares,WWW.ADDISONLEE.COM,07/01/2018,33.88
DAY CENTRES,Catering Food & Drink,ICELAND,08/01/2018,162.91
HOUSING MANAGEMENT SERVICES,Use of Public Transport,NEW SOUTHERN RAILW,08/01/2018,50.00
LIBRARIES & ARCHIVE,Books/Publications/Resources,SAINSBURYS CASH,08/01/2018,170.00
LIBRARIES & ARCHIVE,Books/Publications/Resources,PRIME STORE,08/01/2018,515.90
MENTAL HEALTH,Accommodation,FIR TREE COUNTRY HOTEL,08/01/2018,552.20
NEIGHBOURHOODS,Building-Timber,PREMIER SHEDS,08/01/2018,138.34
OTHER - ADULTS,Banquet & Catering,WWW.EVENTSUPPLIES.CO.U,08/01/2018,123.12
OTHER - ADULTS,Catering Food & Drink,Amazon UK Marketplace,08/01/2018,60.71
OTHER - ADULTS,Catering Food & Drink,TESCO STORES 5999,08/01/2018,75.58
YOUTH OFFENDING SERVICE,Travel/Subsistence,BRIXTONHILL EXPRESS,08/01/2018,200.00
BALANCE SHEET,Personal,Amazon UK Marketplace,09/01/2018,-0.91
LIBRARIES & ARCHIVE,Education-Library Books,Amazon UK Marketplace,09/01/2018,4.54
LIBRARIES & ARCHIVE,Books/Publications/Resources,CASH ADVANCE FEE,09/01/2018,5.02
LIBRARIES & ARCHIVE,Domestic Goods-Other,ARGOS LTD,09/01/2018,17.96
MENTAL HEALTH,Legal Services-Other,HMCOURTS-SERVICE.G,09/01/2018,75.00
MENTAL HEALTH,Legal Services-Other,HMCOURTS-SERVICE.G,09/01/2018,225.00
MENTAL HEALTH,Legal Services-Other,HMCOURTS-SERVICE.G,09/01/2018,75.00
MENTAL HEALTH,Legal Services-Other,HMCOURTS-SERVICE.G,09/01/2018,75.00
MENTAL HEALTH,Legal Services-Other,HMCOURTS-SERVICE.G,09/01/2018,150.00
MENTAL HEALTH,Legal Services-Other,HMCOURTS-SERVICE.G,09/01/2018,75.00
NEIGHBOURHOODS,Building-Paint,S LONDON DECORTORS,09/01/2018,4.05
NEIGHBOURHOODS,Building-Paint,S LONDON DECORTORS,09/01/2018,21.97
NEIGHBOURHOODS,Building-Paint,S LONDON DECORTORS,09/01/2018,133.38
NEIGHBOURHOODS,Building-Timber,SCREWFIX,09/01/2018,174.02
REVENUE & BENEFITS,Books/Publications/Resources,THE KNOWLEDGE ACADEMY,09/01/2018,"1,446.92"
BUSINESS SUPPORT,Building-Timber,B&Q DIRECT,10/01/2018,66.67
BUSINESS SUPPORT,Charges and Penalties,WWW.ARGOS.CO.UK,10/01/2018,629.78
BUSINESS SUPPORT,Charges and Penalties,WWW.ARGOS.CO.UK,10/01/2018,77.40
BUSINESS SUPPORT,Travel/Subsistence,OYSTER AUTOTOPUP,10/01/2018,40.00
BUSINESS SUPPORT,Travel/Subsistence,OYSTER BUS AUTOTOP,10/01/2018,40.00
BUSINESS SUPPORT,Travel/Subsistence,OYSTER BUS AUTOTOP,10/01/2018,40.00
BUSINESS SUPPORT,Travel/Subsistence,TRAINLINE,10/01/2018,197.37
BUSINESS SUPPORT,Travel/Subsistence,TRAINLINE,10/01/2018,98.95
BUSINESS SUPPORT,Use of Public Transport,ABEX585B0 LONDON NET C,10/01/2018,29.19
BUSINESS SUPPORT,Use of Public Transport,OYSTER RENEW WEB,10/01/2018,55.00
BUSINESS SUPPORT,Use of Public Transport,WWWLONDONNETCARSCOU,10/01/2018,62.00
CHILDREN LOOKED AFTER,Facilities-Storage,KATOR STORAGE LTD,10/01/2018,145.44
CHILDREN LOOKED AFTER,Financial Services,GRO HM PASSPORT OFFICE,10/01/2018,23.40
CHILDREN LOOKED AFTER,Financial Services,GRO HM PASSPORT OFFICE,10/01/2018,9.25
CHILDREN SAFEGUARDING & ASSESSMENTS,Travel/Subsistence,GOEURO,10/01/2018,14.31
DAY CENTRES,Education-Library Books,AMAZON SVCS EU-UK AMAZON.,10/01/2018,19.98
DAY CENTRES,Financial Services,CASH ADVANCE FEE,10/01/2018,7.38
DAY CENTRES,Financial Services,NATWEST BANK /,10/01/2018,250.00
FINANCIAL PLANNING AND MANAGEMENT,Travel/Subsistence,OYSTER AUTOTOPUP,10/01/2018,20.00
LIBRARIES & ARCHIVE,Education-Supplies,DEMCO EUROPE,10/01/2018,382.50
OTHER - ADULTS,Travel/Subsistence,BRITISH A 1258767295602,10/01/2018,62.54
OTHER - ADULTS,Travel/Subsistence,BRITISH A 1258767297017,10/01/2018,54.46
OTHER - ADULTS,Travel/Subsistence,EASYJET 000 ETFKF3,10/01/2018,59.45
QUALITY ASSURANCE & PERFORMANCE,Catering Food & Drink,MARKS&SPENCER PLC SACA,10/01/2018,40.10
BUSINESS SUPPORT,Education-Library Books,Amazon UK Marketplace,11/01/2018,52.94
BUSINESS SUPPORT,Professional subscriptions,GRO HM PASSPORT OFFICE,11/01/2018,-9.25
CHILDREN LOOKED AFTER,Arts & Leisure Services,ENCORE TICKETS,11/01/2018,"2,870.95"
CHILDREN LOOKED AFTER,Catering Food & Drink,SAINSBURYS S/MKTS,11/01/2018,28.35
CHILDREN LOOKED AFTER,Domestic Goods-Other,WWW.ARGOS.CO.UK,11/01/2018,159.98
CHILDREN LOOKED AFTER,Domestic Goods-Other,AO RETAIL LIMITED,11/01/2018,379.00
CHILDREN LOOKED AFTER,Domestic Goods-Other,AO RETAIL LIMITED,11/01/2018,499.00
CHILDREN LOOKED AFTER,Domestic Goods-Other,CURRYS ONLINE,11/01/2018,324.99
CHILDREN LOOKED AFTER,Domestic Goods-Other,TESCO - Seller_IST_1_2401,11/01/2018,99.99
CHILDREN LOOKED AFTER,Domestic Goods-Other,WWW.ARGOS.CO.UK,11/01/2018,474.98
CHILDREN LOOKED AFTER,Domestic Goods-Other,WWW.ARGOS.CO.UK,11/01/2018,163.85
CHILDREN LOOKED AFTER,Facilities-Storage,SAFESTORE LIMITED,11/01/2018,474.30
CHILDREN LOOKED AFTER,Furniture-Domestic Furniture,IKEA ONLINE,11/01/2018,255.00
CHILDREN LOOKED AFTER,Furniture-Domestic Furniture,DFS FURNITURE,11/01/2018,678.00
CHILDREN LOOKED AFTER,Furniture-Domestic Furniture,WWW.HAPPYBEDS.CO.UK,11/01/2018,275.49
CHILDREN LOOKED AFTER,Travel/Subsistence,OYSTER AUTOSETTLE,11/01/2018,60.00
CHILDREN LOOKED AFTER,Travel/Subsistence,OYSTER AUTOTOPUP,11/01/2018,20.00
CHILDREN LOOKED AFTER,Travel/Subsistence,OYSTER BUS AUTOSET,11/01/2018,60.00
CHILDREN LOOKED AFTER,Travel/Subsistence,OYSTER BUS AUTOTOP,11/01/2018,20.00
CHILDREN LOOKED AFTER,Travel/Subsistence,OYSTER RENEW WEB,11/01/2018,-20.00
CHILDREN LOOKED AFTER,Travel/Subsistence,OYSTER RENEW WEB,11/01/2018,20.00
CHILDREN LOOKED AFTER,Travel/Subsistence,OYSTER RENEW WEB,11/01/2018,20.00
FINANCIAL PLANNING AND MANAGEMENT,Use of Public Transport,TRAINLINE,11/01/2018,129.50
HOUSING MANAGEMENT SERVICES,Building-Timber,B & Q 1037,11/01/2018,46.12
HOUSING MANAGEMENT SERVICES,Catering Food & Drink,PRET A MANGER,11/01/2018,17.18
HOUSING MANAGEMENT SERVICES,Catering Food & Drink,TESCO STORES 6231,11/01/2018,2.47
HOUSING MANAGEMENT SERVICES,Financial Services,GRO HM PASSPORT OFFICE,11/01/2018,9.25
HOUSING MANAGEMENT SERVICES,Travel/Subsistence,LUL TICKET MACHINE,11/01/2018,80.00
LIBRARIES & ARCHIVE,Education-Library Books,AMAZON EU AMAZON.CO.UK,11/01/2018,29.65
LIBRARIES & ARCHIVE,Education-Library Books,AMAZON EU AMAZON.CO.UK,11/01/2018,17.99
LIBRARIES & ARCHIVE,Education-Library Books,Amazon UK Marketplace,11/01/2018,8.19
LIBRARIES & ARCHIVE,Education-Library Books,Amazon UK Marketplace,11/01/2018,21.79
LIBRARIES & ARCHIVE,Education-Library Books,Amazon UK Marketplace,11/01/2018,10.19
LIBRARIES & ARCHIVE,Education-Library Books,Amazon UK Marketplace,11/01/2018,17.08
LIBRARIES & ARCHIVE,Education-Library Books,Amazon UK Retail,11/01/2018,16.98
LIBRARIES & ARCHIVE,Education-Library Books,Amazon UK Retail,11/01/2018,7.99
LIBRARIES & ARCHIVE,Education-Library Books,BARNES&NOBLE.COM-BN,11/01/2018,24.33
NEIGHBOURHOODS,Building-General,F R JONES & SON,11/01/2018,195.97
POLICY & COMMUNICATIONS,IT Hardware,Amazon UK Retail,11/01/2018,10.90
POLICY & COMMUNICATIONS,IT Services,HOO*Hootsuite Media Inc.,11/01/2018,5.49
BUSINESS SUPPORT,Use of Public Transport,OYSTER RENEW WEB,12/01/2018,30.00
BUSINESS SUPPORT,Charges and Penalties,LBL NOT PRESENT,12/01/2018,200.00
BUSINESS SUPPORT,Professional subscriptions,GRO HM PASSPORT OFFICE,12/01/2018,9.25
BUSINESS SUPPORT,Use of Public Transport,OYSTER RENEW WEB,12/01/2018,30.00
BUSINESS SUPPORT,Use of Public Transport,OYSTER RENEW WEB,12/01/2018,120.00
BUSINESS SUPPORT,Use of Public Transport,OYSTER RENEW WEB,12/01/2018,85.00
CHILDREN SAFEGUARDING & ASSESSMENTS,Domestic Goods-Other,ARGOS RETAIL GROUP,12/01/2018,67.96
DAY CENTRES,Catering Food & Drink,ICELAND,12/01/2018,189.03
HOUSING NEEDS,Furniture-Domestic Furniture,IKEA LIMITED,12/01/2018,85.00
HOUSING NEEDS,Furniture-Domestic Furniture,IKEA ONLINE,12/01/2018,420.83
NEIGHBOURHOODS,Building-Paint,S LONDON DECORTORS,12/01/2018,38.21
NEIGHBOURHOODS,Building-Paint,S LONDON DECORTORS,12/01/2018,124.76
NEIGHBOURHOODS,Charges and Penalties,TFL PENALTY CHARGE,12/01/2018,130.00
QUALITY ASSURANCE & PERFORMANCE,Consultancy-Other,TEACHERS2PARENTS,12/01/2018,80.00
FINANCIAL PLANNING AND MANAGEMENT,Travel/Subsistence,OYSTER AUTOTOPUP,13/01/2018,20.00
FINANCIAL PLANNING AND MANAGEMENT,Travel/Subsistence,OYSTER AUTOTOPUP,13/01/2018,20.00
FINANCIAL PLANNING AND MANAGEMENT,Travel/Subsistence,OYSTER AUTOTOPUP,13/01/2018,20.00
FINANCIAL PLANNING AND MANAGEMENT,Travel/Subsistence,OYSTER BUS AUTOTOP,13/01/2018,20.00
FINANCIAL PLANNING AND MANAGEMENT,Travel/Subsistence,OYSTER ISSUE WEB,13/01/2018,50.00
DAY CENTRES,Travel/Subsistence,OYSTER BUS AUTOTOP,14/01/2018,20.00
LIBRARIES & ARCHIVE,Education-Library Books,Amazon UK Marketplace,14/01/2018,2.48
DAY CENTRES,Catering Food & Drink,TESCO STORE 2764,15/01/2018,175.32
FINANCIAL PLANNING AND MANAGEMENT,Use of Public Transport,BRITISH A 1258767608294,15/01/2018,249.77
LIBRARIES & ARCHIVE,Education-Library Books,Amazon UK Marketplace,15/01/2018,5.30
NEIGHBOURHOODS,Building-Others,F R JONES & SON,15/01/2018,203.46
CHILDREN LOOKED AFTER,IT Software-Customised,PAYPAL *VICTORIAN,16/01/2018,9.99
DAY CENTRES,Catering Food & Drink,ICELAND,16/01/2018,29.38
EARLY HELP,Books/Publications/Resources,WWW POSTCODEANYWHERE CO U,16/01/2018,60.00
NEIGHBOURHOODS,Building-Tools,SCREWFIX DIRECT,16/01/2018,58.33
NEIGHBOURHOODS,Building-Tools,WWW.TOOLSTATION.COM,16/01/2018,29.27
"WELFARE, EMPLOYMENT & SKILLS",Books/Publications/Resources,H&M,16/01/2018,60.03
"WELFARE, EMPLOYMENT & SKILLS",Books/Publications/Resources,THE POST OFFICE,16/01/2018,50.00
"WELFARE, EMPLOYMENT & SKILLS",Books/Publications/Resources,THE POST OFFICE,16/01/2018,400.00
"WELFARE, EMPLOYMENT & SKILLS",Stationery,POST OFFICE SELF SERVI,16/01/2018,1.30
"WELFARE, EMPLOYMENT & SKILLS",Stationery,POST OFFICE SELF SERVI,16/01/2018,0.65
"WELFARE, EMPLOYMENT & SKILLS",Subsistence: Lunch Allowance,SAINSBURYS S/MKTS,16/01/2018,25.00
"WELFARE, EMPLOYMENT & SKILLS",Use of Public Transport,BRIX CENTRAL STOP,16/01/2018,78.60
"WELFARE, EMPLOYMENT & SKILLS",Use of Public Transport,BRIX CENTRAL STOP,16/01/2018,49.20
"WELFARE, EMPLOYMENT & SKILLS",Use of Public Transport,BRIX CENTRAL STOP,16/01/2018,41.50
"WELFARE, EMPLOYMENT & SKILLS",Use of Public Transport,BRIX CENTRAL STOP,16/01/2018,131.00
BUSINESS SUPPORT,Books/Publications/Resources,SP I A FASHIONS,17/01/2018,69.98
CHILDREN SAFEGUARDING & ASSESSMENTS,Travel/Subsistence,OYSTER BUS AUTOTOP,17/01/2018,20.00
CHILDREN SAFEGUARDING & ASSESSMENTS,Travel/Subsistence,OYSTER BUS AUTOTOP,17/01/2018,20.00
CHILDREN SAFEGUARDING & ASSESSMENTS,Travel/Subsistence,OYSTER BUS AUTOTOP,17/01/2018,40.00
CHILDREN SAFEGUARDING & ASSESSMENTS,Travel/Subsistence,OYSTER BUS AUTOTOP,17/01/2018,20.00
CHILDREN SAFEGUARDING & ASSESSMENTS,Travel/Subsistence,OYSTER ISSUE WEB,17/01/2018,175.00
CHILDREN SAFEGUARDING & ASSESSMENTS,Travel/Subsistence,OYSTER RENEW WEB,17/01/2018,120.00
CHILDREN SAFEGUARDING & ASSESSMENTS,Use of Public Transport,WWW.SOUTHEASTERNRAILWA,17/01/2018,20.00
CORPORATE AFFAIRS,Furniture-Office Furniture,ASSOCIATED SECURIT,17/01/2018,118.25
NEIGHBOURHOODS,Building-Timber,SCREWFIX,17/01/2018,-32.00
NEIGHBOURHOODS,Building-Timber,SCREWFIX DIRECT,17/01/2018,92.32
NEIGHBOURHOODS,IT Software-Customised,AD WORLD IT,17/01/2018,4.90
NEIGHBOURHOODS,Utilities,CROWN OIL LTD,17/01/2018,374.70
BUSINESS SUPPORT,Use of Public Transport,OYSTER RENEW WEB,18/01/2018,30.00
BUSINESS SUPPORT,Use of Public Transport,OYSTER RENEW WEB,18/01/2018,30.00
CHILDREN LOOKED AFTER,Catering Food & Drink,MARKS&SPENCER PLC SACA,18/01/2018,97.00
CHILDREN LOOKED AFTER,Catering Food & Drink,MARKS&SPENCER PLC SACA,18/01/2018,57.27
CHILDREN LOOKED AFTER,Catering Food & Drink,TESCO STORE 2143,18/01/2018,29.68
CHILDREN LOOKED AFTER,Domestic Goods-Other,POUNDLAND LTD 1203,18/01/2018,6.00
CHILDREN LOOKED AFTER,Domestic Goods-Other,ARGOS RETAIL GROUP,18/01/2018,139.99
CHILDREN LOOKED AFTER,Financial Services,HM PASSPORT OFFICE,18/01/2018,46.00
CHILDREN LOOKED AFTER,Financial Services,HM PASSPORT OFFICE,18/01/2018,46.00
CHILDREN LOOKED AFTER,Financial Services-Grants,ABBEVILLES RESTAURANT,18/01/2018,85.20
CHILDREN LOOKED AFTER,Furniture-Domestic Furniture,PAYPAL *BEDS4ALL,18/01/2018,374.00
CHILDREN LOOKED AFTER,Furniture-Office Furniture,POSTURITE (UK) LTD,18/01/2018,409.26
CHILDREN LOOKED AFTER,Taxi Fares,CABLE CABS,18/01/2018,170.00
CHILDREN LOOKED AFTER,Travel/Subsistence,OYSTER AUTOTOPUP,18/01/2018,40.00
CHILDREN LOOKED AFTER,Travel/Subsistence,OYSTER BUS AUTOTOP,18/01/2018,20.00
CHILDREN LOOKED AFTER,Travel/Subsistence,OYSTER BUS AUTOTOP,18/01/2018,20.00
CHILDREN LOOKED AFTER,Travel/Subsistence,OYSTER BUS AUTOTOP,18/01/2018,20.00
CHILDREN LOOKED AFTER,Travel/Subsistence,OYSTER ISSUE TEL,18/01/2018,30.50
CHILDREN LOOKED AFTER,Travel/Subsistence,OYSTER RENEW WEB,18/01/2018,40.00
CHILDREN LOOKED AFTER,Travel/Subsistence,OYSTER RENEW WEB,18/01/2018,-20.00
CHILDREN LOOKED AFTER,Travel/Subsistence,OYSTER RENEW WEB,18/01/2018,20.00
DAY CENTRES,Travel/Subsistence,OYSTER BUS AUTOTOP,18/01/2018,20.00
EARLY HELP,Books/Publications/Resources,IPSEA,18/01/2018,195.00
FINANCIAL PLANNING AND MANAGEMENT,Professional subscriptions,WWW.CIMAGLOBAL.COM,18/01/2018,278.00
INTERNAL AUDIT,Education-Library Books,Amazon UK Marketplace,18/01/2018,19.74
INTERNAL AUDIT,Travel/Subsistence,OYSTER AUTOTOPUP,18/01/2018,40.00
INTERNAL AUDIT,Travel/Subsistence,OYSTER BUS AUTOTOP,18/01/2018,40.00
LIBRARIES & ARCHIVE,Education-Library Books,AMAZON EU AMAZON.CO.UK,18/01/2018,6.00
LIBRARIES & ARCHIVE,Education-Library Books,Amazon UK Marketplace,18/01/2018,18.13
LIBRARIES & ARCHIVE,Education-Library Books,Amazon UK Marketplace,18/01/2018,7.19
LIBRARIES & ARCHIVE,Education-Library Books,Amazon UK Retail,18/01/2018,3.50
LIBRARIES & ARCHIVE,Education-Library Books,Amazon UK Retail,18/01/2018,31.98
LIBRARIES & ARCHIVE,Education-Library Books,Amazon UK Retail,18/01/2018,6.63
NEIGHBOURHOODS,Education-Library Books,Amazon UK Marketplace,18/01/2018,11.11
BUSINESS SUPPORT,Use of Public Transport,OYSTER RENEW WEB,19/01/2018,30.00
BUSINESS SUPPORT,Use of Public Transport,OYSTER RENEW WEB,19/01/2018,30.00
CHILDREN SAFEGUARDING & ASSESSMENTS,Subsistence: Breakfast Allowance,SAINSBURYS S/MKTS,19/01/2018,100.00
DAY CENTRES,Catering Food & Drink,ICELAND,19/01/2018,136.71
DAY CENTRES,Education-Other,Amazon UK Marketplace,19/01/2018,19.92
DAY CENTRES,Furniture-Other,Amazon UK Marketplace,19/01/2018,4.00
FINANCIAL PLANNING AND MANAGEMENT,Use of Public Transport,LUL TICKET MACHINE,19/01/2018,50.00
LIBRARIES & ARCHIVE,Education-Other,AMAZON SVCS EU-UK AMAZON.,19/01/2018,39.90
LIBRARIES & ARCHIVE,Education-Supplies,BIOPAC (UK) LTD,19/01/2018,93.28
LIBRARIES & ARCHIVE,Facilities-Printing,THE READING AGENCY,19/01/2018,98.00
NEIGHBOURHOODS,Building-Timber,ACRE LANE TIMBER LTD,19/01/2018,33.78
NEIGHBOURHOODS,Building-Timber,ACRE LANE BUILDERS,19/01/2018,185.93
NEIGHBOURHOODS,Horticultural-Other,PAYPAL *MIMMACKAQUA,19/01/2018,49.16
QUALITY ASSURANCE & PERFORMANCE,Travel/Subsistence,OYSTER AUTOTOPUP,19/01/2018,40.00
QUALITY ASSURANCE & PERFORMANCE,Travel/Subsistence,OYSTER AUTOTOPUP,19/01/2018,40.00
QUALITY ASSURANCE & PERFORMANCE,Travel/Subsistence,OYSTER AUTOTOPUP,19/01/2018,40.00
QUALITY ASSURANCE & PERFORMANCE,Travel/Subsistence,OYSTER BUS AUTOTOP,19/01/2018,80.00
QUALITY ASSURANCE & PERFORMANCE,Travel/Subsistence,OYSTER BUS AUTOTOP,19/01/2018,40.00
QUALITY ASSURANCE & PERFORMANCE,Travel/Subsistence,OYSTER BUS AUTOTOP,19/01/2018,40.00
QUALITY ASSURANCE & PERFORMANCE,Travel/Subsistence,OYSTER RENEW WEB,19/01/2018,20.00
QUALITY ASSURANCE & PERFORMANCE,Travel/Subsistence,TRAINLINE,19/01/2018,-19.00
QUALITY ASSURANCE & PERFORMANCE,Travel/Subsistence,TRAINLINE,19/01/2018,-8.50
REVENUE & BENEFITS,Travel/Subsistence,OYSTER BUS AUTOTOP,19/01/2018,20.00
DAY CENTRES,Travel/Subsistence,OYSTER BUS AUTOTOP,20/01/2018,20.00
NEIGHBOURHOODS,Building-Timber,PREMIER SHEDS,20/01/2018,71.84
CHILDREN LOOKED AFTER,Domestic Goods-Other,WWW.ARGOS.CO.UK,22/01/2018,234.98
CHILDREN SAFEGUARDING & ASSESSMENTS,Domestic Goods-Other,ARGOS DIRECT,22/01/2018,143.94
CHILDREN SAFEGUARDING & ASSESSMENTS,Domestic Goods-Other,ARGOS DIRECT,22/01/2018,276.94
CHILDREN SAFEGUARDING & ASSESSMENTS,Financial Services,GRO HM PASSPORT OFFICE,22/01/2018,23.40
CHILDREN SAFEGUARDING & ASSESSMENTS,Financial Services,HM PASSPORT,22/01/2018,106.00
CHILDREN SAFEGUARDING & ASSESSMENTS,Financial Services,GRO HM PASSPORT OFFICE,22/01/2018,9.25
DAY CENTRES,Education-Other,Amazon UK Marketplace,22/01/2018,21.45
HOUSING MANAGEMENT SERVICES,Professional subscriptions,SURVEYMONKEY.COM,22/01/2018,408.00
HOUSING MANAGEMENT SERVICES,Use of Public Transport,LUL TICKET MACHINE,22/01/2018,160.00
HUMAN RESOURCES & ORGANISATIONAL DEVELOPMENT,Couriers,WWW.ADDISONLEE.COM,22/01/2018,21.10
INTERNAL AUDIT,Travel/Subsistence,OYSTER AUTOTOPUP,22/01/2018,40.00
INTERNAL AUDIT,Travel/Subsistence,TFL ROAD CHARGE,22/01/2018,11.50
LIBRARIES & ARCHIVE,Books/Publications/Resources,SAINSBURYS CASH,22/01/2018,150.00
NEIGHBOURHOODS,Cemetery & Crematorium,Amazon UK Marketplace,22/01/2018,17.68
NEIGHBOURHOODS,Horticultural-Seeds & Plants,INTERFLORA BRITISH UNI,22/01/2018,30.00
NEIGHBOURHOODS,Stationery,AMAZON SVCS EU-UK AMAZON.,22/01/2018,3.10
NEIGHBOURHOODS,Stationery,Amazon UK Marketplace,22/01/2018,2.87
NEIGHBOURHOODS,Utilities,WWW.BRITISHGAS.CO.,22/01/2018,186.63
OTHER - ADULTS,Catering Food & Drink,TESCO STORES 5999,22/01/2018,51.61
OTHER - ADULTS,Catering Food & Drink,TESCO STORES 5999,22/01/2018,50.02
OTHER - ADULTS,Stationery,Amazon UK Marketplace,22/01/2018,39.72
BUSINESS SUPPORT,Charges and Penalties,Hotel on Booking.com,23/01/2018,59.00
BUSINESS SUPPORT,Charges and Penalties,WWW.ARGOS.CO.UK,23/01/2018,301.88
BUSINESS SUPPORT,Charges and Penalties,WWWLONDONNETCARSCOU,23/01/2018,155.00
BUSINESS SUPPORT,Charges and Penalties,WWWLONDONNETCARSCOU,23/01/2018,93.00
BUSINESS SUPPORT,Use of Public Transport,OYSTER RENEW WEB,23/01/2018,-60.00
BUSINESS SUPPORT,Books/Publications/Resources,DVLA DRIVER ONLINE,23/01/2018,34.00
CORPORATE AFFAIRS,Travel/Subsistence,LUL TICKET MACHINE,23/01/2018,50.00
CORPORATE AFFAIRS,Travel/Subsistence,LUL TICKET MACHINE,23/01/2018,50.00
CORPORATE AFFAIRS,Travel/Subsistence,OYSTER RENEW WEB,23/01/2018,50.00
CORPORATE AFFAIRS,Travel/Subsistence,OYSTER RENEW WEB,23/01/2018,-50.00
LIBRARIES & ARCHIVE,Books/Publications/Resources,CASH ADVANCE FEE,23/01/2018,4.43
LIBRARIES & ARCHIVE,Education-Library Books,AMAZON EU AMAZON.CO.UK,23/01/2018,10.99
LIBRARIES & ARCHIVE,Education-Library Books,AMAZON SVCS EU-UK AMAZON.,23/01/2018,8.71
LIBRARIES & ARCHIVE,Education-Library Books,AMAZON SVCS EU-UK AMAZON.,23/01/2018,11.42
LIBRARIES & ARCHIVE,Education-Library Books,AMAZON SVCS EU-UK AMAZON.,23/01/2018,22.80
LIBRARIES & ARCHIVE,Education-Library Books,AMAZON SVCS EU-UK AMAZON.,23/01/2018,2.63
LIBRARIES & ARCHIVE,Education-Library Books,Amazon UK Marketplace,23/01/2018,14.99
LIBRARIES & ARCHIVE,Education-Library Books,Amazon UK Marketplace,23/01/2018,17.80
LIBRARIES & ARCHIVE,Education-Library Books,Amazon UK Marketplace,23/01/2018,20.80
LIBRARIES & ARCHIVE,Education-Library Books,Amazon UK Retail,23/01/2018,6.99
BUSINESS SUPPORT,Use of Public Transport,OYSTER RENEW WEB,24/01/2018,30.00
BUSINESS SUPPORT,Use of Public Transport,OYSTER RENEW WEB,24/01/2018,30.00
BUSINESS SUPPORT,Use of Public Transport,OYSTER RENEW WEB,24/01/2018,30.00
BUSINESS SUPPORT,Use of Public Transport,OYSTER RENEW WEB,24/01/2018,30.00
BUSINESS SUPPORT,Use of Public Transport,OYSTER RENEW WEB,24/01/2018,30.00
DAY CENTRES,Furniture-Other,Amazon UK Marketplace,24/01/2018,109.90
HOUSING CAPITAL & ASSET MANAGEMENT,HMRC Fees,HMCOURTS-SERVICE.G,24/01/2018,280.00
LIBRARIES & ARCHIVE,Travel/Subsistence,OYSTER BUS AUTOTOP,24/01/2018,40.00
LIBRARIES & ARCHIVE,Travel/Subsistence,OYSTER BUS AUTOTOP,24/01/2018,40.00
MENTAL HEALTH,Legal Services-Other,HMCOURTS-SERVICE.G,24/01/2018,75.00
MENTAL HEALTH,Legal Services-Other,HMCOURTS-SERVICE.G,24/01/2018,225.00
MENTAL HEALTH,Legal Services-Other,HMCOURTS-SERVICE.G,24/01/2018,150.00
MUSIC SERVICES,Stationery,AMAZON SVCS EU-UK AMAZON.,24/01/2018,29.75
NEIGHBOURHOODS,Building-Tools,SCREWFIX DIRECT,24/01/2018,72.05
NEIGHBOURHOODS,Building-Tools,F R JONES & SON,24/01/2018,125.00
NEIGHBOURHOODS,Building-Tools,F R JONES & SON,24/01/2018,125.00
NEIGHBOURHOODS,Education-Arts/Crafts,AMAZON EU AMAZON.CO.UK,24/01/2018,9.59
NEIGHBOURHOODS,Education-Arts/Crafts,AMAZON SVCS EU-UK AMAZON.,24/01/2018,43.32
POLICY & COMMUNICATIONS,IT Services,123 REG R/T,24/01/2018,19.99
POLICY & COMMUNICATIONS,IT Software,ADOBE SYSTEMS SOFTWARE,24/01/2018,118.00
BALANCE SHEET,Personal,Amazon UK Marketplace,25/01/2018,-0.01
BALANCE SHEET,Personal,Amazon UK Marketplace,25/01/2018,-1.20
BUSINESS SUPPORT,Charges and Penalties,AnyVanUK,25/01/2018,40.00
BUSINESS SUPPORT,Charges and Penalties,WWWLONDONNETCARSCOU,25/01/2018,155.00
BUSINESS SUPPORT,Charges and Penalties,WWWLONDONNETCARSCOU,25/01/2018,40.00
BUSINESS SUPPORT,Charges and Penalties,www.anyvan.com,25/01/2018,65.00
BUSINESS SUPPORT,Use of Public Transport,OYSTER RENEW WEB,25/01/2018,115.00
BUSINESS SUPPORT,Use of Public Transport,OYSTER RENEW WEB,25/01/2018,30.00
BUSINESS TRANSFORMATION,IT Hardware,Amazon UK Marketplace,25/01/2018,570.25
BUSINESS TRANSFORMATION,IT Hardware,Amazon UK Marketplace,25/01/2018,62.30
BUSINESS TRANSFORMATION,IT Hardware,Amazon UK Marketplace,25/01/2018,234.81
BUSINESS TRANSFORMATION,IT Hardware,Amazon UK Marketplace,25/01/2018,71.88
BUSINESS TRANSFORMATION,IT Hardware,Amazon UK Marketplace,25/01/2018,14.38
CHILDREN LOOKED AFTER,Accommodation,TRAVELODGE GB0000,25/01/2018,483.75
CHILDREN LOOKED AFTER,Domestic Goods-Other,MORLEYS,25/01/2018,1.85
CHILDREN LOOKED AFTER,Domestic Goods-Other,WWW.ARGOS.CO.UK,25/01/2018,213.94
CHILDREN LOOKED AFTER,Domestic Goods-Other,CURRYS ONLINE,25/01/2018,-85.00
CHILDREN LOOKED AFTER,Financial Services,THE HOME OFFICE,25/01/2018,237.00
CHILDREN LOOKED AFTER,Financial Services,GRO HM PASSPORT OFFICE,25/01/2018,0.00
CHILDREN LOOKED AFTER,Financial Services,THE HOME OFFICE,25/01/2018,237.00
CHILDREN LOOKED AFTER,Travel/Subsistence,OYSTER AUTOTOPUP,25/01/2018,20.00
CHILDREN LOOKED AFTER,Travel/Subsistence,OYSTER AUTOTOPUP,25/01/2018,60.00
CHILDREN LOOKED AFTER,Travel/Subsistence,OYSTER AUTOTOPUP,25/01/2018,20.00
CHILDREN LOOKED AFTER,Travel/Subsistence,OYSTER AUTOTOPUP,25/01/2018,20.00
CHILDREN LOOKED AFTER,Travel/Subsistence,OYSTER AUTOTOPUP,25/01/2018,40.00
CHILDREN LOOKED AFTER,Travel/Subsistence,OYSTER BUS AUTOTOP,25/01/2018,40.00
CHILDREN LOOKED AFTER,Travel/Subsistence,OYSTER BUS AUTOTOP,25/01/2018,60.00
CHILDREN LOOKED AFTER,Travel/Subsistence,OYSTER BUS AUTOTOP,25/01/2018,40.00
CHILDREN LOOKED AFTER,Travel/Subsistence,Opodo ID 3899646477,25/01/2018,416.23
CHILDREN LOOKED AFTER,Travel/Subsistence,THETRAINLINE.COM,25/01/2018,497.50
CHILDREN LOOKED AFTER,Travel/Subsistence,RYANAIR 22400000CP697,25/01/2018,112.21
CHILDREN LOOKED AFTER,Travel/Subsistence,RYANAIR 22400000LRLEK,25/01/2018,111.35
CHILDREN LOOKED AFTER,Travel/Subsistence,OYSTER AUTOTOPUP,25/01/2018,20.00
CHILDREN LOOKED AFTER,Travel/Subsistence,OYSTER AUTOTOPUP,25/01/2018,20.00
CHILDREN LOOKED AFTER,Travel/Subsistence,OYSTER AUTOTOPUP,25/01/2018,20.00
CHILDREN LOOKED AFTER,Travel/Subsistence,OYSTER AUTOTOPUP,25/01/2018,20.00
CHILDREN LOOKED AFTER,Travel/Subsistence,OYSTER AUTOTOPUP,25/01/2018,20.00
CHILDREN LOOKED AFTER,Travel/Subsistence,OYSTER AUTOTOPUP,25/01/2018,20.00
CHILDREN LOOKED AFTER,Travel/Subsistence,OYSTER AUTOTOPUP,25/01/2018,20.00
CHILDREN LOOKED AFTER,Travel/Subsistence,OYSTER BUS AUTOTOP,25/01/2018,20.00
CHILDREN LOOKED AFTER,Travel/Subsistence,OYSTER BUS AUTOTOP,25/01/2018,20.00
FINANCIAL PLANNING AND MANAGEMENT,Travel/Subsistence,OYSTER AUTOTOPUP,25/01/2018,20.00
FINANCIAL PLANNING AND MANAGEMENT,Travel/Subsistence,OYSTER AUTOTOPUP,25/01/2018,20.00
FINANCIAL PLANNING AND MANAGEMENT,Use of Public Transport,TRAINLINE,25/01/2018,93.16
BUSINESS SUPPORT,Use of Public Transport,OYSTER RENEW WEB,26/01/2018,-30.00
CHILDREN SAFEGUARDING & ASSESSMENTS,Education-Library Books,Amazon UK Marketplace,26/01/2018,61.02
DAY CENTRES,Catering Food & Drink,ICELAND,26/01/2018,190.63
DAY CENTRES,Financial Services,CASH ADVANCE FEE,26/01/2018,11.80
DAY CENTRES,Financial Services,NATIONWIDE /W0270Y,26/01/2018,400.00
QUALITY ASSURANCE & PERFORMANCE,Facilities-Printing,PRONTAPRINT,26/01/2018,590.00
QUALITY ASSURANCE & PERFORMANCE,Facilities-Printing,PRONTAPRINT,26/01/2018,485.00
CHILDREN LOOKED AFTER,Education-Other,PP*IELTSMEDICA,27/01/2018,64.00
CHILDREN LOOKED AFTER,Financial Services-Grants,ALLPAY LTD,27/01/2018,125.20
CHILDREN LOOKED AFTER,Legal Services-Other,MARSTON GROUP,27/01/2018,215.00
CHILDREN LOOKED AFTER,Mail Services-Postage,THE POST OFFICE,27/01/2018,200.00
CHILDREN LOOKED AFTER,Travel/Subsistence,OYSTER BUS AUTOTOP,27/01/2018,20.00
CHILDREN LOOKED AFTER,Travel/Subsistence,OYSTER AUTOTOPUP,27/01/2018,20.00
CHILDREN LOOKED AFTER,Travel/Subsistence,OYSTER BUS AUTOTOP,27/01/2018,20.00
CHILDREN LOOKED AFTER,Travel/Subsistence,OYSTER BUS AUTOTOP,27/01/2018,20.00
CHILDREN LOOKED AFTER,Travel/Subsistence,OYSTER BUS AUTOTOP,27/01/2018,20.00
CHILDREN LOOKED AFTER,Travel/Subsistence,OYSTER BUS AUTOTOP,27/01/2018,20.00
CHILDREN SAFEGUARDING & ASSESSMENTS,Financial Services,GRO HM PASSPORT OFFICE,27/01/2018,76.65
CHILDREN SAFEGUARDING & ASSESSMENTS,Financial Services,GRO HM PASSPORT OFFICE,27/01/2018,23.40
EMPLOYMENT & ENTERPRISE - E&L,Travel/Subsistence,OYSTER AUTOTOPUP,27/01/2018,20.00
EMPLOYMENT & ENTERPRISE - E&L,Travel/Subsistence,OYSTER AUTOTOPUP,27/01/2018,20.00
EMPLOYMENT & ENTERPRISE - E&L,Travel/Subsistence,OYSTER BUS AUTOTOP,27/01/2018,20.00
EMPLOYMENT & ENTERPRISE - E&L,Travel/Subsistence,OYSTER BUS AUTOTOP,27/01/2018,20.00
EMPLOYMENT & ENTERPRISE - E&L,Travel/Subsistence,OYSTER BUS AUTOTOP,27/01/2018,20.00
EMPLOYMENT & ENTERPRISE - E&L,Travel/Subsistence,OYSTER BUS AUTOTOP,27/01/2018,20.00
NEIGHBOURHOODS,Stationery,AMAZON EU AMAZON.CO.UK,27/01/2018,9.59
BUSINESS TRANSFORMATION,IT Services,RipeNCCCom,28/01/2018,974.96
DAY CENTRES,Domestic Goods-Other,AMAZON SVCS EU-UK AMAZON.,28/01/2018,8.10
DAY CENTRES,Domestic Goods-Other,AMAZON SVCS EU-UK AMAZON.,28/01/2018,20.59
BUSINESS SUPPORT,Use of Public Transport,OYSTER RENEW WEB,29/01/2018,30.00
BUSINESS SUPPORT,Use of Public Transport,OYSTER RENEW WEB,29/01/2018,30.00
CHILDREN SAFEGUARDING & ASSESSMENTS,Use of Public Transport,OYSTER RENEW WEB,29/01/2018,30.00
NEIGHBOURHOODS,Stationery,RHS LONDON,29/01/2018,35.00
OTHER - ADULTS,Catering Food & Drink,TESCO STORES 5999,29/01/2018,69.98
"PLANNING, TRANSPORT & DEVELOPMENT",Travel/Subsistence,LUL TICKET MACHINE,29/01/2018,120.00
BUSINESS SUPPORT,Books/Publications/Resources,WWW.ARGOS.CO.UK,30/01/2018,526.87
BUSINESS SUPPORT,Charges and Penalties,LONDON CRYSTAL PALACE HOT,30/01/2018,182.00
BUSINESS SUPPORT,Charges and Penalties,WWWLONDONNETCARSCOU,30/01/2018,308.00
BUSINESS SUPPORT,Charges and Penalties,WWWLONDONNETCARSCOU,30/01/2018,48.00
BUSINESS SUPPORT,Use of Public Transport,OYSTER RENEW WEB,30/01/2018,90.00
BUSINESS SUPPORT,Use of Public Transport,OYSTER RENEW WEB,30/01/2018,60.00
CHILDREN SAFEGUARDING & ASSESSMENTS,Catering Food & Drink,TESCO STORE 2143,30/01/2018,200.00
CHILDREN SAFEGUARDING & ASSESSMENTS,Domestic Goods-Other,CURRYS ONLINE,30/01/2018,224.98
CHILDREN SAFEGUARDING & ASSESSMENTS,Financial Services,GRO HM PASSPORT OFFICE,30/01/2018,23.40
CHILDREN SAFEGUARDING & ASSESSMENTS,Domestic Goods-Other,WWW.ARGOS.CO.UK,30/01/2018,124.99
LIBRARIES & ARCHIVE,Domestic Goods-Other,ARGOS LTD,30/01/2018,11.98
NEIGHBOURHOODS,Domestic Goods-Other,ARGOS RETAIL GROUP,30/01/2018,39.99
NEIGHBOURHOODS,Utilities,CASTLE WATER,30/01/2018,18.60
NEIGHBOURHOODS,Utilities,CASTLE WATER,30/01/2018,15.95
QUALITY ASSURANCE & PERFORMANCE,Travel/Subsistence,LONDON & SOUTH EAS,30/01/2018,20.00
QUALITY ASSURANCE & PERFORMANCE,Travel/Subsistence,OYSTER AUTOTOPUP,30/01/2018,40.00
QUALITY ASSURANCE & PERFORMANCE,Travel/Subsistence,OYSTER BUS AUTOTOP,30/01/2018,40.00
QUALITY ASSURANCE & PERFORMANCE,Travel/Subsistence,OYSTER BUS AUTOTOP,30/01/2018,40.00
QUALITY ASSURANCE & PERFORMANCE,Travel/Subsistence,OYSTER RENEW WEB,30/01/2018,-20.00
QUALITY ASSURANCE & PERFORMANCE,Travel/Subsistence,TRAINLINE,30/01/2018,118.50
QUALITY ASSURANCE & PERFORMANCE,Travel/Subsistence,TRAINLINE,30/01/2018,58.00
QUALITY ASSURANCE & PERFORMANCE,Travel/Subsistence,TRAINLINE,30/01/2018,39.20
BUSINESS SUPPORT,Use of Public Transport,OYSTER RENEW WEB,31/01/2018,-30.00
CHILDREN LOOKED AFTER,Domestic Goods-Other,ARGOS RETAIL GROUP,31/01/2018,54.98
CHILDREN SAFEGUARDING & ASSESSMENTS,Travel/Subsistence,OYSTER BUS AUTOTOP,31/01/2018,20.00
CHILDREN SAFEGUARDING & ASSESSMENTS,Travel/Subsistence,OYSTER RENEW WEB,31/01/2018,120.00
CHILDREN SAFEGUARDING & ASSESSMENTS,Travel/Subsistence,OYSTER RENEW WEB,31/01/2018,60.00
CHILDREN SAFEGUARDING & ASSESSMENTS,Travel/Subsistence,OYSTER RENEW WEB,31/01/2018,60.00
CHILDREN SAFEGUARDING & ASSESSMENTS,Travel/Subsistence,OYSTER RENEW WEB,31/01/2018,30.00
CHILDREN SAFEGUARDING & ASSESSMENTS,Travel/Subsistence,OYSTER RENEW WEB,31/01/2018,30.00
CHILDREN SAFEGUARDING & ASSESSMENTS,Travel/Subsistence,OYSTER BUS AUTOTOP,31/01/2018,20.00
CHILDREN SAFEGUARDING & ASSESSMENTS,Travel/Subsistence,OYSTER BUS AUTOTOP,31/01/2018,40.00
CHILDREN SAFEGUARDING & ASSESSMENTS,Travel/Subsistence,OYSTER BUS AUTOTOP,31/01/2018,20.00
CHILDREN SAFEGUARDING & ASSESSMENTS,Travel/Subsistence,OYSTER RENEW WEB,31/01/2018,10.00
CHILDREN SAFEGUARDING & ASSESSMENTS,Travel/Subsistence,OYSTER RENEW WEB,31/01/2018,20.00
FINANCIAL PLANNING AND MANAGEMENT,Financial Services,LAND REGISTRY,31/01/2018,3.00
FINANCIAL PLANNING AND MANAGEMENT,Financial Services,LAND REGISTRY,31/01/2018,6.00
FINANCIAL PLANNING AND MANAGEMENT,Financial Services,LAND REGISTRY,31/01/2018,3.00
FINANCIAL PLANNING AND MANAGEMENT,Financial Services,LAND REGISTRY,31/01/2018,3.00
FINANCIAL PLANNING AND MANAGEMENT,Financial Services,LAND REGISTRY,31/01/2018,3.00
FINANCIAL PLANNING AND MANAGEMENT,Financial Services,LAND REGISTRY,31/01/2018,3.00
FINANCIAL PLANNING AND MANAGEMENT,Financial Services,LAND REGISTRY,31/01/2018,3.00
INTERNAL AUDIT,Financial Services,GRO HM PASSPORT OFFICE,31/01/2018,9.25
LIBRARIES & ARCHIVE,Education-Library Books,AMAZON SVCS EU-UK AMAZON.,31/01/2018,14.18
LIBRARIES & ARCHIVE,Education-Library Books,AMAZON SVCS EU-UK AMAZON.,31/01/2018,4.76
LIBRARIES & ARCHIVE,Education-Library Books,AMAZON SVCS EU-UK AMAZON.,31/01/2018,27.66
LIBRARIES & ARCHIVE,Education-Library Books,Amazon UK Marketplace,31/01/2018,50.61
LIBRARIES & ARCHIVE,Education-Library Books,Amazon UK Marketplace,31/01/2018,2.67
LIBRARIES & ARCHIVE,Education-Library Books,Amazon UK Marketplace,31/01/2018,5.44
LIBRARIES & ARCHIVE,Education-Library Books,Amazon UK Retail,31/01/2018,3.89
LIBRARIES & ARCHIVE,Education-Library Books,AMAZON EU AMAZON.CO.UK,31/01/2018,7.90
NEIGHBOURHOODS,Consultancy-Business,FORTRESS MASTER LOCKSMITH,31/01/2018,36.28
NEIGHBOURHOODS,Stationery,WWW.RAINBOWSAFETEY.CO.UK,31/01/2018,147.96
REVENUE & BENEFITS,Legal Services-Other,HMCOURTS-SERVICE.G,31/01/2018,"4,290.00"
CHILDREN LOOKED AFTER,Domestic Goods-Other,WWW.ARGOS.CO.UK,01/02/2018,733.90
CHILDREN LOOKED AFTER,Domestic Goods-Other,AO RETAIL LIMITED,01/02/2018,-2.00
CHILDREN LOOKED AFTER,Domestic Goods-Other,WWW.ARGOS.CO.UK,01/02/2018,21.94
CHILDREN LOOKED AFTER,Domestic Goods-Other,WWW.ARGOS.CO.UK,01/02/2018,"3,249.18"
CHILDREN LOOKED AFTER,Education-Other,PARTRIDGE & PRINT,01/02/2018,378.00
CHILDREN LOOKED AFTER,Financial Services,LBL NOT PRESENT,01/02/2018,122.14
CHILDREN LOOKED AFTER,Furniture-Domestic Furniture,IKEA ONLINE,01/02/2018,235.00
CHILDREN LOOKED AFTER,Furniture-Domestic Furniture,WWW.BEDS.CO.UK,01/02/2018,279.00
CHILDREN LOOKED AFTER,Furniture-Domestic Furniture,WWW.FURNITURE4U.UK.COM,01/02/2018,609.00
CHILDREN LOOKED AFTER,Furniture-Domestic Furniture,IKEA ONLINE,01/02/2018,-180.00
CHILDREN LOOKED AFTER,Furniture-Office Furniture,WWW.POSTURITE.CO.UK,01/02/2018,185.99
CHILDREN LOOKED AFTER,Legal Services-General Support,BINDMANS LLP,01/02/2018,"3,746.00"
CHILDREN LOOKED AFTER,Travel/Subsistence,OYSTER AUTOTOPUP,01/02/2018,20.00
CHILDREN LOOKED AFTER,Travel/Subsistence,OYSTER AUTOTOPUP,01/02/2018,60.00
CHILDREN LOOKED AFTER,Travel/Subsistence,OYSTER BUS AUTOTOP,01/02/2018,20.00
CHILDREN LOOKED AFTER,Travel/Subsistence,OYSTER BUS AUTOTOP,01/02/2018,20.00
CHILDREN LOOKED AFTER,Travel/Subsistence,OYSTER BUS AUTOTOP,01/02/2018,20.00
CHILDREN LOOKED AFTER,Travel/Subsistence,OYSTER BUS AUTOTOP,01/02/2018,40.00
CHILDREN LOOKED AFTER,Travel/Subsistence,OYSTER RENEW WEB,01/02/2018,25.50
CHILDREN LOOKED AFTER,Travel/Subsistence,OYSTER RENEW WEB,01/02/2018,30.50
CHILDREN LOOKED AFTER,Travel/Subsistence,OYSTER BUS AUTOTOP,01/02/2018,20.00
CHILDREN SAFEGUARDING & ASSESSMENTS,Domestic Goods-Other,WWW.ARGOS.CO.UK,01/02/2018,146.65
CHILDREN SAFEGUARDING & ASSESSMENTS,Travel/Subsistence,OYSTER RENEW WEB,01/02/2018,25.00
CHILDREN SAFEGUARDING & ASSESSMENTS,Travel/Subsistence,OYSTER RENEW WEB,01/02/2018,30.00
CHILDREN SAFEGUARDING & ASSESSMENTS,Travel/Subsistence,OYSTER RENEW WEB,01/02/2018,30.00
CHILDREN SAFEGUARDING & ASSESSMENTS,Travel/Subsistence,OYSTER RENEW WEB,01/02/2018,30.00
CHILDREN SAFEGUARDING & ASSESSMENTS,Travel/Subsistence,OYSTER RENEW WEB,01/02/2018,30.00
CHILDREN SAFEGUARDING & ASSESSMENTS,Travel/Subsistence,OYSTER RENEW WEB,01/02/2018,30.00
CHILDREN SAFEGUARDING & ASSESSMENTS,Travel/Subsistence,OYSTER RENEW WEB,01/02/2018,30.00
CHILDREN SAFEGUARDING & ASSESSMENTS,Travel/Subsistence,OYSTER AUTOTOPUP,01/02/2018,40.00
CHILDREN SAFEGUARDING & ASSESSMENTS,Travel/Subsistence,OYSTER AUTOTOPUP,01/02/2018,40.00
CHILDREN SAFEGUARDING & ASSESSMENTS,Travel/Subsistence,OYSTER BUS AUTOTOP,01/02/2018,40.00
CHILDREN SAFEGUARDING & ASSESSMENTS,Travel/Subsistence,OYSTER BUS AUTOTOP,01/02/2018,40.00
CHILDREN SAFEGUARDING & ASSESSMENTS,Travel/Subsistence,OYSTER BUS AUTOTOP,01/02/2018,40.00
CHILDREN SAFEGUARDING & ASSESSMENTS,Travel/Subsistence,OYSTER BUS AUTOTOP,01/02/2018,40.00
CHILDREN SAFEGUARDING & ASSESSMENTS,Travel/Subsistence,OYSTER BUS AUTOTOP,01/02/2018,40.00
CHILDREN SAFEGUARDING & ASSESSMENTS,Travel/Subsistence,OYSTER RENEW WEB,01/02/2018,30.00
CHILDREN SAFEGUARDING & ASSESSMENTS,Travel/Subsistence,OYSTER RENEW WEB,01/02/2018,-30.00
CHILDREN SAFEGUARDING & ASSESSMENTS,Travel/Subsistence,OYSTER RENEW WEB,01/02/2018,30.00
CHILDREN SAFEGUARDING & ASSESSMENTS,Travel/Subsistence,OYSTER RENEW WEB,01/02/2018,50.00
CHILDREN SAFEGUARDING & ASSESSMENTS,Travel/Subsistence,OYSTER RENEW WEB,01/02/2018,30.00
CHILDREN SAFEGUARDING & ASSESSMENTS,Travel/Subsistence,LUL TICKET MACHINE,01/02/2018,30.00
CHILDREN SAFEGUARDING & ASSESSMENTS,Travel/Subsistence,OYSTER RENEW WEB,01/02/2018,60.00
CHILDREN SAFEGUARDING & ASSESSMENTS,Travel/Subsistence,OYSTER RENEW WEB,01/02/2018,30.00
CHILDREN SAFEGUARDING & ASSESSMENTS,Travel/Subsistence,OYSTER RENEW WEB,01/02/2018,30.00
CHILDREN SAFEGUARDING & ASSESSMENTS,Travel/Subsistence,OYSTER RENEW WEB,01/02/2018,30.00
HOUSING MANAGEMENT SERVICES,Books/Publications/Resources,MARKS&SPENCER PLC,01/02/2018,55.00
HOUSING MANAGEMENT SERVICES,Books/Publications/Resources,MARKS&SPENCER PLC,01/02/2018,120.00
HOUSING MANAGEMENT SERVICES,Domestic Goods-Other,WWW.ARGOS.CO.UK,01/02/2018,169.95
HOUSING MANAGEMENT SERVICES,Education-Library Books,AMAZON SVCS EU-UK AMAZON.,01/02/2018,13.32
HOUSING MANAGEMENT SERVICES,Facilities-Market Research,WWW.INSIDEHG.CO.UK R/T,01/02/2018,53.75
HOUSING MANAGEMENT SERVICES,Use of Public Transport,LUL TICKET MACHINE,01/02/2018,50.00
LIBRARIES & ARCHIVE,Education-Library Books,AMAZON EU AMAZON.CO.UK,01/02/2018,25.00
NEIGHBOURHOODS,Building-Timber,SELCO TRADING CTR,01/02/2018,60.09
NEIGHBOURHOODS,Building-Tools,HIRE 4 LOWER,01/02/2018,50.28
POLICY & COMMUNICATIONS,Facilities-Advertising,FACEBK GFWPLDAS62,01/02/2018,43.72
POLICY & COMMUNICATIONS,Facilities-Advertising,FACEBK QFWPLDAS62,01/02/2018,1.28
POLICY & COMMUNICATIONS,Facilities-Printing,EMAP LTD-SUBSCRIPTIONS,01/02/2018,249.00
POLICY & COMMUNICATIONS,IT Services,NATIONBUILDER,01/02/2018,159.30
SPECIAL EDUCATIONAL NEEDS,Facilities-Printing,Amazon UK Retail,01/02/2018,59.86
CHILDREN SAFEGUARDING & ASSESSMENTS,Legal Services-Other,HMCOURTS-SERVICE.G,02/02/2018,20.00
LIBRARIES & ARCHIVE,Domestic Goods-Other,WWW.ARGOS.CO.UK,02/02/2018,88.94
MENTAL HEALTH,Professional & Advisory Services,TRFSA *THOMSONREUTERS,02/02/2018,788.50
MENTAL HEALTH,Travel/Subsistence,LONDON & SOUTH EAS,02/02/2018,61.20
NEIGHBOURHOODS,Building-Timber,ACRE LANE TIMBER LTD,02/02/2018,63.67
LIBRARIES & ARCHIVE,Education-Library Books,Amazon UK Retail,03/02/2018,16.64
QUALITY ASSURANCE & PERFORMANCE,Catering Food & Drink,ASDA STORES LTD TOTTE,03/02/2018,28.05
BALANCE SHEET,Personal,ZIPNFC,05/02/2018,-12.00
BUSINESS SUPPORT,Use of Public Transport,OYSTER RENEW WEB,05/02/2018,-30.00
BUSINESS SUPPORT,Use of Public Transport,OYSTER RENEW WEB,05/02/2018,90.00
FINANCIAL PLANNING AND MANAGEMENT,Financial Services,LAND REGISTRY,05/02/2018,3.00
NEIGHBOURHOODS,Building-General,LANDSCAPE SUPPLY COMPA,05/02/2018,249.95
NEIGHBOURHOODS,Building-Timber,SCREWFIX,05/02/2018,69.67
NEIGHBOURHOODS,IT Software-Customised,ZIPNFC,05/02/2018,102.50
NEIGHBOURHOODS,Mail Services-Postage,POST OFFICE COUNTER,05/02/2018,6.45
NEIGHBOURHOODS,Travel/Subsistence,PARKINGEYE LTD,05/02/2018,3.20
NEIGHBOURHOODS,Building-General,GENTWORKS LIMITED,05/02/2018,177.00
NEIGHBOURHOODS,Clothing-Other,WWW.EVAQ8.CO.UK,05/02/2018,85.70
NEIGHBOURHOODS,Vehicle Maintenance,J.B.W. GROUP LTD,05/02/2018,513.00
PROPERTY & FINANCIAL TRANSACTION SERVICES,Catering Food & Drink,TESCO STORES 5999,05/02/2018,43.70
PROPERTY & FINANCIAL TRANSACTION SERVICES,Catering Food & Drink,TESCO STORES 5999,05/02/2018,43.70
PROPERTY & FINANCIAL TRANSACTION SERVICES,Travel/Subsistence,OYSTER RENEW WEB,05/02/2018,30.00
PROPERTY & FINANCIAL TRANSACTION SERVICES,Travel/Subsistence,OYSTER RENEW WEB,05/02/2018,20.00
PROPERTY & FINANCIAL TRANSACTION SERVICES,Travel/Subsistence,OYSTER RENEW WEB,05/02/2018,-30.00
PROPERTY & FINANCIAL TRANSACTION SERVICES,Travel/Subsistence,OYSTER RENEW WEB,05/02/2018,-20.00
CHILDREN SAFEGUARDING & ASSESSMENTS,Use of Public Transport,OYSTER RENEW WEB,06/02/2018,30.00
DAY CENTRES,Catering Food & Drink,ICELAND,06/02/2018,196.42
DAY CENTRES,Financial Services,CASH ADVANCE FEE,06/02/2018,7.38
DAY CENTRES,Financial Services,NATWEST BANK /,06/02/2018,250.00
NEIGHBOURHOODS,Building-Paint,S LONDON DECORTORS,06/02/2018,118.41
NEIGHBOURHOODS,Building-Paint,S LONDON DECORTORS,06/02/2018,155.43
NEIGHBOURHOODS,Cemetery & Crematorium,Amazon UK Marketplace,06/02/2018,9.29
NEIGHBOURHOODS,Mail Services-Postage,AMAZON SVCS EU-UK AMAZON.,06/02/2018,2.72
NEIGHBOURHOODS,Stationery,Amazon UK Marketplace,06/02/2018,6.99
NEIGHBOURHOODS,Stationery,Amazon UK Marketplace,06/02/2018,2.99
OTHER - ADULTS,Catering Food & Drink,TESCO STORES 5999,06/02/2018,64.41
QUALITY ASSURANCE & PERFORMANCE,Travel/Subsistence,BRITISH AWY 2551184435845,06/02/2018,192.64
QUALITY ASSURANCE & PERFORMANCE,Travel/Subsistence,BRITISH AWY 2551184435856,06/02/2018,192.64
QUALITY ASSURANCE & PERFORMANCE,Travel/Subsistence,BRITISH AWY 2551184435860,06/02/2018,192.64
QUALITY ASSURANCE & PERFORMANCE,Travel/Subsistence,OYSTER AUTOTOPUP,06/02/2018,40.00
QUALITY ASSURANCE & PERFORMANCE,Travel/Subsistence,OYSTER AUTOTOPUP,06/02/2018,80.00
QUALITY ASSURANCE & PERFORMANCE,Travel/Subsistence,TRAINLINE,06/02/2018,103.20
QUALITY ASSURANCE & PERFORMANCE,Travel/Subsistence,TRAINLINE,06/02/2018,125.60
QUALITY ASSURANCE & PERFORMANCE,Travel/Subsistence,TRAINLINE,06/02/2018,94.20
CHILDREN SAFEGUARDING & ASSESSMENTS,Catering Food & Drink,SAINSBURYS S/MKTS,07/02/2018,20.70
LIBRARIES & ARCHIVE,Books/Publications/Resources,Amazon UK Marketplace,07/02/2018,31.76
NEIGHBOURHOODS,Books/Publications/Resources,WUFOO.COM,07/02/2018,78.50
NEIGHBOURHOODS,Building-Timber,B & Q 1037,07/02/2018,68.24
NEIGHBOURHOODS,Building-Timber,TP BALHAM HILL,07/02/2018,68.77
NEIGHBOURHOODS,Building-Timber,TP TRADING CO LTD,07/02/2018,154.19
NEIGHBOURHOODS,Consultancy-Business,FORTRESS MASTER LOCKSMITH,07/02/2018,24.79
PUBLIC HEALTH - ADULTS,Accommodation,IBIS STYLES AMSTERDAM,07/02/2018,"1,018.28"
PUBLIC HEALTH - ADULTS,Accommodation,MERCURE AMSTERDAM AIR,07/02/2018,73.56
PUBLIC HEALTH - ADULTS,Conference Expenses,Intern. Aids Society,07/02/2018,657.11
PUBLIC HEALTH - ADULTS,Financial Services,FREEDOMS SHOP,07/02/2018,"1,588.60"
PUBLIC HEALTH - ADULTS,Healthcare Services,SWBH AC RECEIVABLE,07/02/2018,142.29
PUBLIC HEALTH - ADULTS,IT Software,PATHWAY ANALYITCS,07/02/2018,"4,421.97"
PUBLIC HEALTH - ADULTS,IT Software-Customised,HOVER,07/02/2018,24.98
PUBLIC HEALTH - ADULTS,Travel/Subsistence,TRAINLINE,07/02/2018,55.59
PUBLIC HEALTH - ADULTS,Travel/Subsistence,BRITISH A 1258229876988,07/02/2018,170.28
PUBLIC HEALTH - ADULTS,Travel/Subsistence,EXPEDIA 7314727250731,07/02/2018,136.74
QUALITY ASSURANCE & PERFORMANCE,Catering Food & Drink,ICELAND,07/02/2018,12.94
QUALITY ASSURANCE & PERFORMANCE,Catering Food & Drink,JAMAICA SPICE BAKERY L,07/02/2018,16.00
QUALITY ASSURANCE & PERFORMANCE,Catering Food & Drink,SAINSBURYS S/MKTS,07/02/2018,15.25
SCHOOL & EDUCATION IMPROVEMENT SERVICE,Financial Services,HSE,07/02/2018,25.00
BUSINESS SUPPORT,Charges and Penalties,www.anyvan.com,08/02/2018,65.00
BUSINESS SUPPORT,Charges and Penalties,www.anyvan.com,08/02/2018,17.00
BUSINESS SUPPORT,Taxi Fares,ABEX5A80A LONDON NET C,08/02/2018,27.50
BUSINESS SUPPORT,Taxi Fares,ABEX5A80C LONDON NET C,08/02/2018,32.40
BUSINESS SUPPORT,Travel/Subsistence,LUL TICKET MACHINE,08/02/2018,140.00
BUSINESS SUPPORT,Use of Public Transport,OYSTER RENEW WEB,08/02/2018,60.00
BUSINESS SUPPORT,Use of Public Transport,OYSTER RENEW WEB,08/02/2018,10.00
CHILDREN LOOKED AFTER,Arts & Leisure Services,LIFESTYLE,08/02/2018,96.00
CHILDREN LOOKED AFTER,Books/Publications/Resources,THE FOSTERING NETWORK,08/02/2018,474.00
CHILDREN LOOKED AFTER,Catering Food & Drink,MARKS&SPENCER PLC,08/02/2018,9.00
CHILDREN LOOKED AFTER,Catering Food & Drink,PRET A MANGER,08/02/2018,7.95
CHILDREN LOOKED AFTER,Domestic Goods-Other,POUNDLAND LTD 1203,08/02/2018,4.00
CHILDREN LOOKED AFTER,Domestic Goods-Other,WWW.ARGOS.CO.UK,08/02/2018,762.92
CHILDREN LOOKED AFTER,Domestic Goods-Other,AO RETAIL LIMITED,08/02/2018,244.00
CHILDREN LOOKED AFTER,Domestic Goods-Other,CURRYS ONLINE,08/02/2018,633.98
CHILDREN LOOKED AFTER,Domestic Goods-Other,CURRYS ONLINE,08/02/2018,419.99
CHILDREN LOOKED AFTER,Domestic Goods-Other,CURRYS ONLINE,08/02/2018,269.00
CHILDREN LOOKED AFTER,Domestic Goods-Other,TESCO DIRECT,08/02/2018,399.00
CHILDREN LOOKED AFTER,Domestic Goods-Other,WWW.ARGOS.CO.UK,08/02/2018,234.93
CHILDREN LOOKED AFTER,Education-Arts/Crafts,HOBBYCRAFT (INTERNET),08/02/2018,54.00
CHILDREN LOOKED AFTER,Education-Library Books,AMAZON.CO.UK,08/02/2018,11.98
CHILDREN LOOKED AFTER,Education-Library Books,Amazon UK Marketplace,08/02/2018,34.74
CHILDREN LOOKED AFTER,Facilities-Storage,KATOR STORAGE LTD,08/02/2018,145.44
CHILDREN LOOKED AFTER,Facilities-Storage,WWW.SAFESTORE.CO.UK,08/02/2018,975.99
CHILDREN LOOKED AFTER,Financial Services,DVLA DRIVER ONLINE,08/02/2018,34.00
CHILDREN LOOKED AFTER,Financial Services,GRO HM PASSPORT OFFICE,08/02/2018,18.50
CHILDREN LOOKED AFTER,Financial Services,HM PASSPORT OFFICE,08/02/2018,46.00
CHILDREN LOOKED AFTER,Financial Services,GRO HM PASSPORT OFFICE,08/02/2018,46.80
CHILDREN LOOKED AFTER,Financial Services,RB KEN&CHELSEA,08/02/2018,26.60
CHILDREN LOOKED AFTER,Financial Services,WANDSWORTH COUNCIL,08/02/2018,22.00
CHILDREN LOOKED AFTER,Financial Services,WANDSWORTH COUNCIL,08/02/2018,-10.00
CHILDREN LOOKED AFTER,Financial Services,HM PASSPORT OFFICE,08/02/2018,72.50
CHILDREN LOOKED AFTER,Financial Services,HM PASSPORT OFFICE,08/02/2018,46.00
CHILDREN LOOKED AFTER,Furniture-Domestic Furniture,Amazon UK Marketplace,08/02/2018,115.41
CHILDREN LOOKED AFTER,Furniture-Domestic Furniture,Amazon UK Marketplace,08/02/2018,88.35
CHILDREN LOOKED AFTER,Furniture-Domestic Furniture,Amazon UK Marketplace,08/02/2018,54.99
CHILDREN LOOKED AFTER,Furniture-Domestic Furniture,Amazon UK Marketplace,08/02/2018,299.38
CHILDREN LOOKED AFTER,Furniture-Domestic Furniture,Amazon UK Marketplace,08/02/2018,25.99
CHILDREN LOOKED AFTER,Furniture-Domestic Furniture,PAYPAL *HOME TREATS,08/02/2018,149.77
CHILDREN LOOKED AFTER,Horticultural-Seeds & Plants,WILD DAISY FLORIST,08/02/2018,33.50
CHILDREN LOOKED AFTER,Travel/Subsistence,OYSTER AUTOTOPUP,08/02/2018,20.00
CHILDREN LOOKED AFTER,Travel/Subsistence,OYSTER BUS AUTOTOP,08/02/2018,20.00
CHILDREN LOOKED AFTER,Travel/Subsistence,OYSTER BUS AUTOTOP,08/02/2018,20.00
CHILDREN LOOKED AFTER,Travel/Subsistence,OYSTER AUTOTOPUP,08/02/2018,60.00
CHILDREN LOOKED AFTER,Travel/Subsistence,OYSTER BUS AUTOTOP,08/02/2018,40.00
CHILDREN LOOKED AFTER,Travel/Subsistence,OYSTER BUS AUTOTOP,08/02/2018,40.00
CHILDREN LOOKED AFTER,Travel/Subsistence,OYSTER BUS AUTOTOP,08/02/2018,20.00
CHILDREN LOOKED AFTER,Travel/Subsistence,OYSTER BUS AUTOTOP,08/02/2018,40.00
CHILDREN LOOKED AFTER,Travel/Subsistence,OYSTER RENEW WEB,08/02/2018,-25.50
CHILDREN LOOKED AFTER,Travel/Subsistence,OYSTER RENEW WEB,08/02/2018,-30.50
CHILDREN LOOKED AFTER,Travel/Subsistence,BRITISH A 1258768325612,08/02/2018,249.20
CHILDREN LOOKED AFTER,Travel/Subsistence,TRAINLINE,08/02/2018,137.75
CHILDREN LOOKED AFTER,Travel/Subsistence,EUROSTAR INTERNET,08/02/2018,220.50
CHILDREN LOOKED AFTER,Travel/Subsistence,OYSTER BUS AUTOTOP,08/02/2018,20.00
CHILDREN LOOKED AFTER,Works-Construction,PP*NULIFEBUILD,08/02/2018,150.00
CHILDREN SAFEGUARDING & ASSESSMENTS,Use of Public Transport,LUL TICKET MACHINE,08/02/2018,20.00
INTERNAL AUDIT,Travel/Subsistence,OYSTER AUTOTOPUP,08/02/2018,40.00
INTERNAL AUDIT,Travel/Subsistence,TFL ROAD CHARGE,08/02/2018,11.50
INVESTMENT & GROWTH,Education-Other,CPC,08/02/2018,77.92
INVESTMENT & GROWTH,Education-Other,WWW.LINDY.CO.UK,08/02/2018,81.74
INVESTMENT & GROWTH,Education-Other,WWW.NOBISFURNITURE.COM,08/02/2018,"1,029.24"
INVESTMENT & GROWTH,Education-Other,WWW.NOBISFURNITURE.COM,08/02/2018,353.16
LIBRARIES & ARCHIVE,Education-Library Books,AMAZON SVCS EU-UK AMAZON.,08/02/2018,55.51
LIBRARIES & ARCHIVE,Education-Library Books,AMAZON EU AMAZON.CO.UK,08/02/2018,22.99
LIBRARIES & ARCHIVE,Education-Library Books,AMAZON EU AMAZON.CO.UK,08/02/2018,36.15
LIBRARIES & ARCHIVE,Education-Library Books,AMAZON EU AMAZON.CO.UK,08/02/2018,14.98
LIBRARIES & ARCHIVE,Education-Library Books,AMAZON EU AMAZON.CO.UK,08/02/2018,8.99
LIBRARIES & ARCHIVE,Education-Library Books,Amazon UK Marketplace,08/02/2018,9.47
LIBRARIES & ARCHIVE,Education-Library Books,Amazon UK Marketplace,08/02/2018,5.69
NEIGHBOURHOODS,Building-Timber,THE DECORATORS MATE,08/02/2018,114.70
"WELFARE, EMPLOYMENT & SKILLS",Books/Publications/Resources,ADOBE EXPORTPDF SUB,08/02/2018,21.14
"WELFARE, EMPLOYMENT & SKILLS",Books/Publications/Resources,AMMERHURST LTD,08/02/2018,13.12
"WELFARE, EMPLOYMENT & SKILLS",Subsistence: Lunch Allowance,SAINSBURYS S/MKTS,08/02/2018,200.00
"WELFARE, EMPLOYMENT & SKILLS",Use of Public Transport,BRIX CENTRAL STOP,08/02/2018,26.20
"WELFARE, EMPLOYMENT & SKILLS",Use of Public Transport,BRIX CENTRAL STOP,08/02/2018,27.30
"WELFARE, EMPLOYMENT & SKILLS",Use of Public Transport,BRIX CENTRAL STOP,08/02/2018,8.00
"WELFARE, EMPLOYMENT & SKILLS",Use of Public Transport,BRIX CENTRAL STOP,08/02/2018,127.00
"WELFARE, EMPLOYMENT & SKILLS",Use of Public Transport,BRIX CENTRAL STOP,08/02/2018,28.20
"WELFARE, EMPLOYMENT & SKILLS",Use of Public Transport,BRIX CENTRAL STOP,08/02/2018,26.20
"WELFARE, EMPLOYMENT & SKILLS",Use of Public Transport,BRIX CENTRAL STOP,08/02/2018,131.00
"WELFARE, EMPLOYMENT & SKILLS",Use of Public Transport,BRIXTON NEWS,08/02/2018,41.40
"WELFARE, EMPLOYMENT & SKILLS",Use of Public Transport,LUL TICKET MACHINE,08/02/2018,10.00
"WELFARE, EMPLOYMENT & SKILLS",Use of Public Transport,LUL TICKET MACHINE,08/02/2018,29.70
"WELFARE, EMPLOYMENT & SKILLS",Use of Public Transport,LUL TICKET MACHINE,08/02/2018,5.00
"WELFARE, EMPLOYMENT & SKILLS",Use of Public Transport,LUL TICKET MACHINE,08/02/2018,53.00
"WELFARE, EMPLOYMENT & SKILLS",Use of Public Transport,OYSTER RENEW WEB,08/02/2018,163.60
"WELFARE, EMPLOYMENT & SKILLS",Use of Public Transport,TFL OYST PHOTOCARD,08/02/2018,156.30
DAY CENTRES,Catering Food & Drink,TESCO STORE 2764,09/02/2018,117.63
DAY CENTRES,Catering Food & Drink,ICELAND,09/02/2018,28.00
FINANCIAL PLANNING AND MANAGEMENT,Domestic Goods-Other,DEBENHAMS.COM,09/02/2018,39.99
FINANCIAL PLANNING AND MANAGEMENT,Domestic Goods-Other,WWW.ARGOS.CO.UK,09/02/2018,122.95
LIBRARIES & ARCHIVE,Books/Publications/Resources,SAINSBURYS CASH,09/02/2018,160.00
LIBRARIES & ARCHIVE,Education-Other,CURRYS SUPERSTORE,09/02/2018,282.50
LIBRARIES & ARCHIVE,Education-Other,MANTON OFFICE EQUIPMENT L,09/02/2018,309.12
LIBRARIES & ARCHIVE,Education-Other,TESCO STORE 2143,09/02/2018,120.85
NEIGHBOURHOODS,Cleaning-Internal,AMAZON SVCS EU-UK AMAZON.,09/02/2018,6.99
POLICY & COMMUNICATIONS,IT Services,AMAZON MKTPLACE PMTS,10/02/2018,130.84
POLICY & COMMUNICATIONS,IT Services,HOO*Hootsuite Media Inc.,10/02/2018,5.37
POLICY & COMMUNICATIONS,IT Services,NATIONBUILDER,10/02/2018,64.98
POLICY & COMMUNICATIONS,IT Services,PANTHEON SYSTEMS INC,10/02/2018,18.25
POLICY & COMMUNICATIONS,IT Software,WWW.WEVIDEO.COM/CHARGE,10/02/2018,11.80
QUALITY ASSURANCE & PERFORMANCE,Travel/Subsistence,OYSTER AUTOTOPUP,11/02/2018,40.00
QUALITY ASSURANCE & PERFORMANCE,Travel/Subsistence,OYSTER AUTOTOPUP,11/02/2018,40.00
QUALITY ASSURANCE & PERFORMANCE,Travel/Subsistence,OYSTER BUS AUTOTOP,11/02/2018,40.00
QUALITY ASSURANCE & PERFORMANCE,Travel/Subsistence,OYSTER BUS AUTOTOP,11/02/2018,40.00
QUALITY ASSURANCE & PERFORMANCE,Travel/Subsistence,OYSTER RENEW WEB,11/02/2018,30.00
QUALITY ASSURANCE & PERFORMANCE,Travel/Subsistence,TRAINLINE,11/02/2018,80.45
QUALITY ASSURANCE & PERFORMANCE,Travel/Subsistence,TRAINLINE,11/02/2018,21.75
BUSINESS SUPPORT,Education-Library Books,AMAZON SVCS EU-UK AMAZON.,12/02/2018,8.49
BUSINESS SUPPORT,Education-Library Books,AMAZON SVCS EU-UK AMAZON.,12/02/2018,26.32
BUSINESS SUPPORT,Education-Library Books,AMAZON SVCS EU-UK AMAZON.,12/02/2018,160.87
LIBRARIES & ARCHIVE,Books/Publications/Resources,CASH ADVANCE FEE,12/02/2018,4.72
LIBRARIES & ARCHIVE,Education-Other,IKEA LIMITED,12/02/2018,"1,288.04"
NEIGHBOURHOODS,Building-General,FORTRESS MASTER LOCKSMITH,12/02/2018,48.96
NEIGHBOURHOODS,Furniture-Office Furniture,AMAZON SVCS EU-UK AMAZON.,12/02/2018,25.99
NEIGHBOURHOODS,Stationery,AMAZON SVCS EU-UK AMAZON.,12/02/2018,7.20
NEIGHBOURHOODS,Stationery,WWW.ARGOS.CO.UK,12/02/2018,48.94
NEIGHBOURHOODS,Vehicle Parts,STOCKWELL MOTOR ACCES,12/02/2018,6.39
BUSINESS SUPPORT,Charges and Penalties,HM PASSPORT OFFICE,13/02/2018,49.00
BUSINESS SUPPORT,Charges and Penalties,TRAVEL CAR SERVICES,13/02/2018,80.50
BUSINESS SUPPORT,Charges and Penalties,WWW.IMAGEFORKIDZ.CO.UK,13/02/2018,322.05
BUSINESS SUPPORT,Charges and Penalties,WWWLONDONNETCARSCOU,13/02/2018,95.00
BUSINESS SUPPORT,Charges and Penalties,WWWLONDONNETCARSCOU,13/02/2018,183.00
BUSINESS SUPPORT,Congestion Charge,TFL ROAD CHARGE,13/02/2018,11.50
BUSINESS SUPPORT,Use of Public Transport,OYSTER RENEW WEB,13/02/2018,60.00
DAY CENTRES,Catering Food & Drink,ICELAND,13/02/2018,24.45
DAY CENTRES,Financial Services,CASH ADVANCE FEE,13/02/2018,11.80
DAY CENTRES,Financial Services,SAINSBURYS CASH,13/02/2018,400.00
HOUSING MANAGEMENT SERVICES,Catering Food & Drink,TESCO STORES 6231,13/02/2018,2.07
LIBRARIES & ARCHIVE,Education-Other,DEMCO EUROPE,13/02/2018,711.50
NEIGHBOURHOODS,Building-General,ACRE LANE BUILDERS,13/02/2018,162.96
NEIGHBOURHOODS,Building-Timber,B & Q 1037,13/02/2018,25.18
NEIGHBOURHOODS,Building-Tools,TOOLSTATION LTD,13/02/2018,50.95
NEIGHBOURHOODS,Building-Tools,TOOLSTATION LTD,13/02/2018,7.68
NEIGHBOURHOODS,Stationery,AMAZON SVCS EU-UK AMAZON.,13/02/2018,10.98
QUALITY ASSURANCE & PERFORMANCE,Stationery,LOVE2SHOP.CO.UK,13/02/2018,506.45
EARLY HELP,Books/Publications/Resources,MORLEYS,14/02/2018,8.45
HOUSING NEEDS,Furniture-Domestic Furniture,AMAZON SVCS EU-UK AMAZON.,14/02/2018,100.00
HOUSING NEEDS,Furniture-Domestic Furniture,Amazon UK Marketplace,14/02/2018,100.00
HOUSING NEEDS,Furniture-Domestic Furniture,IKEA ONLINE,14/02/2018,307.50
HOUSING NEEDS,Furniture-Domestic Furniture,WAYFAIR STORES LIM,14/02/2018,199.16
HOUSING NEEDS,Furniture-Domestic Furniture,WWW.IKEA.COM,14/02/2018,61.67
NEIGHBOURHOODS,Building-Timber,SELCO TRADING CTR,14/02/2018,14.50
NEIGHBOURHOODS,Building-Timber,SELCO TRADING CTR,14/02/2018,208.26
NEIGHBOURHOODS,Horticultural-Other,WWW.EVAQ8.CO.UK,14/02/2018,171.40
"PLANNING, TRANSPORT & DEVELOPMENT",Travel/Subsistence,ST GEORGE SOUTH,14/02/2018,76.00
QUALITY ASSURANCE & PERFORMANCE,Food/refreshment - meetings,TESCO STORE 2143,14/02/2018,119.46
BUSINESS SUPPORT,Charges and Penalties,HMCOURTS-SERVICE.G,15/02/2018,100.00
BUSINESS SUPPORT,Use of Public Transport,OYSTER RENEW WEB,15/02/2018,60.00
BUSINESS SUPPORT,Use of Public Transport,OYSTER RENEW WEB,15/02/2018,60.00
CHILDREN LOOKED AFTER,Accommodation,HOTEL BANNATYNE,15/02/2018,100.00
CHILDREN LOOKED AFTER,Books/Publications/Resources,GRO HM PASSPORT OFFICE,15/02/2018,18.50
CHILDREN LOOKED AFTER,Building-Floors,FLOOR FASHION LTD,15/02/2018,500.00
CHILDREN LOOKED AFTER,Domestic Goods-Other,AO RETAIL LIMITED,15/02/2018,394.00
CHILDREN LOOKED AFTER,Domestic Goods-Other,CURRYS ONLINE,15/02/2018,674.98
CHILDREN LOOKED AFTER,Financial Services,HM PASSPORT OFFICE,15/02/2018,72.50
CHILDREN LOOKED AFTER,Furniture-Domestic Furniture,WWW.HAPPYBEDS.CO.UK,15/02/2018,396.98
CHILDREN LOOKED AFTER,Travel/Subsistence,OYSTER BUS AUTOTOP,15/02/2018,20.00
CHILDREN LOOKED AFTER,Travel/Subsistence,BRITISH A 1258769298740,15/02/2018,318.89
CHILDREN LOOKED AFTER,Use of Public Transport,OYSTER AUTOTOPUP,15/02/2018,40.00
CHILDREN LOOKED AFTER,Use of Public Transport,OYSTER BUS AUTOTOP,15/02/2018,60.00
CHILDREN LOOKED AFTER,Use of Public Transport,OYSTER BUS AUTOTOP,15/02/2018,20.00
CHILDREN LOOKED AFTER,Use of Public Transport,OYSTER BUS AUTOTOP,15/02/2018,20.00
CHILDREN LOOKED AFTER,Use of Public Transport,OYSTER BUS AUTOTOP,15/02/2018,20.00
CHILDREN LOOKED AFTER,Use of Public Transport,OYSTER RENEW WEB,15/02/2018,20.00
CHILDREN LOOKED AFTER,Use of Public Transport,PLANET FOOD STORE,15/02/2018,25.00
CHILDREN SAFEGUARDING & ASSESSMENTS,Use of Public Transport,LUL TICKET MACHINE,15/02/2018,50.00
DAY CENTRES,Catering Food & Drink,ICELAND,15/02/2018,24.00
DAY CENTRES,Catering Food & Drink,MN WEST NORWOOD HALAL,15/02/2018,32.43
FINANCIAL PLANNING AND MANAGEMENT,Domestic Goods-Other,WWW.ARGOS.CO.UK,15/02/2018,362.94
FINANCIAL PLANNING AND MANAGEMENT,Travel/Subsistence,OYSTER AUTOTOPUP,15/02/2018,20.00
INTERNAL AUDIT,Domestic Goods-Other,CANFORD AUDIO PLC,15/02/2018,56.00
INTERNAL AUDIT,Facilities-Advertising,WH SMITH,15/02/2018,13.98
LIBRARIES & ARCHIVE,Education-Library Books,AMAZON EU AMAZON.CO.UK,15/02/2018,22.25
LIBRARIES & ARCHIVE,Education-Library Books,AMAZON EU AMAZON.CO.UK,15/02/2018,7.75
LIBRARIES & ARCHIVE,Education-Library Books,AMAZON EU AMAZON.CO.UK,15/02/2018,6.55
LIBRARIES & ARCHIVE,Education-Library Books,AMAZON SVCS EU-UK AMAZON.,15/02/2018,6.80
LIBRARIES & ARCHIVE,Education-Library Books,AMAZON SVCS EU-UK AMAZON.,15/02/2018,2.35
LIBRARIES & ARCHIVE,Education-Library Books,AMAZON SVCS EU-UK AMAZON.,15/02/2018,49.46
LIBRARIES & ARCHIVE,Education-Library Books,Amazon UK Marketplace,15/02/2018,3.15
NEIGHBOURHOODS,Building-Timber,ACRE LANE TIMBER LTD,15/02/2018,43.35
NEIGHBOURHOODS,Building-Timber,SELCO TRADING CTR,15/02/2018,53.72
"WELFARE, EMPLOYMENT & SKILLS",Books/Publications/Resources,H&M,15/02/2018,80.00
"WELFARE, EMPLOYMENT & SKILLS",Books/Publications/Resources,H&M,15/02/2018,20.04
"WELFARE, EMPLOYMENT & SKILLS",Books/Publications/Resources,THE POST OFFICE,15/02/2018,1.99
"WELFARE, EMPLOYMENT & SKILLS",Books/Publications/Resources,TK MAXX,15/02/2018,14.99
"WELFARE, EMPLOYMENT & SKILLS",Books/Publications/Resources,VIAPATH LLP,15/02/2018,150.00
"WELFARE, EMPLOYMENT & SKILLS",Subsistence: Lunch Allowance,SAINSBURY'S SMKT,15/02/2018,50.00
"WELFARE, EMPLOYMENT & SKILLS",Use of Public Transport,BRIX CENTRAL STOP,15/02/2018,32.80
"WELFARE, EMPLOYMENT & SKILLS",Use of Public Transport,BRIX CENTRAL STOP,15/02/2018,2.30
"WELFARE, EMPLOYMENT & SKILLS",Use of Public Transport,BRIX CENTRAL STOP,15/02/2018,13.00
"WELFARE, EMPLOYMENT & SKILLS",Use of Public Transport,OYSTER RENEW WEB,15/02/2018,163.60
"WELFARE, EMPLOYMENT & SKILLS",Use of Public Transport,TFL OYST PHOTOCARD,15/02/2018,156.30
BALANCE SHEET,Personal,WWW.MAPLIN.CO.UK,16/02/2018,-0.01
BUSINESS SUPPORT,Taxi Fares,ABEX5B0B6 LONDON NET C,16/02/2018,59.20
BUSINESS SUPPORT,Taxi Fares,WWW.LONDONNETCARS.CO.U,16/02/2018,68.00
BUSINESS SUPPORT,Taxi Fares,WWWLONDONNETCARSCOU,16/02/2018,25.00
BUSINESS SUPPORT,Travel/Subsistence,OYSTER RENEW WEB,16/02/2018,30.00
DAY CENTRES,Catering Food & Drink,ICELAND,16/02/2018,204.35
FINANCIAL PLANNING AND MANAGEMENT,Consultancy-Business,EB *NLGN ANNUAL CONFER,16/02/2018,158.74
LIBRARIES & ARCHIVE,Education-Other,DEMCO EUROPE,16/02/2018,697.85
LIBRARIES & ARCHIVE,Education-Other,DEMCO EUROPE,16/02/2018,-711.50
NEIGHBOURHOODS,Building-Timber,B & Q 1346,16/02/2018,32.00
NEIGHBOURHOODS,Building-Timber,B & Q 1346,16/02/2018,302.40
NEIGHBOURHOODS,Domestic Goods-Other,WWW.MAPLIN.CO.UK,16/02/2018,70.81
NEIGHBOURHOODS,Travel/Subsistence,TFL ROAD CHARGE,16/02/2018,23.00
NEIGHBOURHOODS,Travel/Subsistence,TFL ROAD CHARGE,16/02/2018,23.00
CHILDREN SAFEGUARDING & ASSESSMENTS,Travel/Subsistence,OYSTER AUTOTOPUP,17/02/2018,20.00
CHILDREN SAFEGUARDING & ASSESSMENTS,Travel/Subsistence,OYSTER AUTOTOPUP,17/02/2018,20.00
CHILDREN SAFEGUARDING & ASSESSMENTS,Travel/Subsistence,OYSTER AUTOTOPUP,17/02/2018,20.00
CHILDREN SAFEGUARDING & ASSESSMENTS,Travel/Subsistence,OYSTER BUS AUTOTOP,17/02/2018,20.00
CHILDREN SAFEGUARDING & ASSESSMENTS,Travel/Subsistence,OYSTER BUS AUTOTOP,17/02/2018,20.00
CHILDREN SAFEGUARDING & ASSESSMENTS,Travel/Subsistence,OYSTER BUS AUTOTOP,17/02/2018,40.00
CHILDREN SAFEGUARDING & ASSESSMENTS,Travel/Subsistence,OYSTER BUS AUTOTOP,17/02/2018,40.00
CHILDREN SAFEGUARDING & ASSESSMENTS,Travel/Subsistence,OYSTER BUS AUTOTOP,17/02/2018,20.00
CHILDREN SAFEGUARDING & ASSESSMENTS,Travel/Subsistence,OYSTER BUS AUTOTOP,17/02/2018,20.00
CHILDREN SAFEGUARDING & ASSESSMENTS,Accommodation,DAYS INN,18/02/2018,75.00
CHILDREN SAFEGUARDING & ASSESSMENTS,Domestic Goods-Other,MOTHERCARE DIRECT-E-CO,18/02/2018,409.94
CHILDREN SAFEGUARDING & ASSESSMENTS,Domestic Goods-Other,MOTHERCARE DIRECT-E-CO,18/02/2018,100.00
CHILDREN SAFEGUARDING & ASSESSMENTS,Domestic Goods-Other,MOTHERCARE DIRECT-E-CO,18/02/2018,270.00
CHILDREN SAFEGUARDING & ASSESSMENTS,Domestic Goods-Other,MOTHERCARE DIRECT-E-CO,18/02/2018,52.50
CHILDREN SAFEGUARDING & ASSESSMENTS,Domestic Goods-Other,WWW.ARGOS.CO.UK,18/02/2018,153.94
CHILDREN SAFEGUARDING & ASSESSMENTS,Domestic Goods-Other,WWW.ARGOS.CO.UK,18/02/2018,183.94
CHILDREN SAFEGUARDING & ASSESSMENTS,Financial Services,GRO HM PASSPORT OFFICE,18/02/2018,46.80
CHILDREN SAFEGUARDING & ASSESSMENTS,Financial Services,GRO HM PASSPORT OFFICE,18/02/2018,-9.25
CHILDREN SAFEGUARDING & ASSESSMENTS,Financial Services,GRO HM PASSPORT OFFICE,18/02/2018,0.00
CHILDREN SAFEGUARDING & ASSESSMENTS,Taxi Fares,WWW.ADDISONLEE.COM,18/02/2018,37.70
CHILDREN SAFEGUARDING & ASSESSMENTS,Taxi Fares,WWWLONDONNETCARSCOU,18/02/2018,202.00
CHILDREN SAFEGUARDING & ASSESSMENTS,Travel/Subsistence,BRITISH A 1258766163658,18/02/2018,186.89
CHILDREN SAFEGUARDING & ASSESSMENTS,Travel/Subsistence,LUL TICKET MACHINE,18/02/2018,15.00
CHILDREN SAFEGUARDING & ASSESSMENTS,Travel/Subsistence,OYSTER AUTOTOPUP,18/02/2018,40.00
CHILDREN SAFEGUARDING & ASSESSMENTS,Travel/Subsistence,OYSTER AUTOTOPUP,18/02/2018,80.00
CHILDREN SAFEGUARDING & ASSESSMENTS,Travel/Subsistence,OYSTER BUS AUTOTOP,18/02/2018,40.00
CHILDREN SAFEGUARDING & ASSESSMENTS,Travel/Subsistence,OYSTER BUS AUTOTOP,18/02/2018,40.00
CHILDREN SAFEGUARDING & ASSESSMENTS,Travel/Subsistence,OYSTER RENEW WEB,18/02/2018,-30.00
CHILDREN SAFEGUARDING & ASSESSMENTS,Travel/Subsistence,OYSTER RENEW WEB,18/02/2018,60.00
CHILDREN SAFEGUARDING & ASSESSMENTS,Travel/Subsistence,OYSTER RENEW WEB,18/02/2018,10.00
CHILDREN SAFEGUARDING & ASSESSMENTS,Travel/Subsistence,OYSTER RENEW WEB,18/02/2018,-30.00
CHILDREN SAFEGUARDING & ASSESSMENTS,Travel/Subsistence,OYSTER RENEW WEB,18/02/2018,30.00
CHILDREN SAFEGUARDING & ASSESSMENTS,Travel/Subsistence,TFL ROAD CHARGE,18/02/2018,11.50
CORPORATE AFFAIRS,Taxi Fares,WWW.ADDISONLEE.COM,18/02/2018,37.00
CORPORATE AFFAIRS,Taxi Fares,WWW.ADDISONLEE.COM,18/02/2018,47.75
LIBRARIES & ARCHIVE,Stationery,Amazon UK Marketplace,18/02/2018,21.85
MENTAL HEALTH,Taxi Fares,WWW.ADDISONLEE.COM,18/02/2018,12.45
BUSINESS SUPPORT,Charges and Penalties,LCC TELEPHONE PAYMENT,19/02/2018,22.00
BUSINESS SUPPORT,Charges and Penalties,WWW.LONDONNETCARS.CO.U,19/02/2018,305.00
BUSINESS SUPPORT,Congestion Charge,TFL ROAD CHARGE,19/02/2018,11.50
BUSINESS SUPPORT,Use of Public Transport,OYSTER RENEW WEB,19/02/2018,30.00
BUSINESS SUPPORT,Use of Public Transport,OYSTER RENEW WEB,19/02/2018,30.00
BUSINESS SUPPORT,Use of Public Transport,OYSTER RENEW WEB,19/02/2018,60.00
DAY CENTRES,Catering Food & Drink,ICELAND,19/02/2018,24.51
MENTAL HEALTH,Legal Services-Other,HMCOURTS-SERVICE.G,19/02/2018,225.00
MENTAL HEALTH,Legal Services-Other,HMCOURTS-SERVICE.G,19/02/2018,75.00
MENTAL HEALTH,Legal Services-Other,HMCOURTS-SERVICE.G,19/02/2018,150.00
NEIGHBOURHOODS,Building-General,WICKES 083,19/02/2018,83.32
OTHER - ADULTS,Catering Food & Drink,TESCO STORES 5999,19/02/2018,69.97
BUSINESS SUPPORT,Catering Food & Drink,TESCO STORES-2143,20/02/2018,2.50
BUSINESS SUPPORT,Catering Food & Drink,TESCO STORES-2143,20/02/2018,3.07
BUSINESS SUPPORT,Education-Library Books,PAYPAL *IOE PRESS,20/02/2018,75.00
CHILDREN LOOKED AFTER,Haulage,WANNA LTD,20/02/2018,42.75
CORPORATE AFFAIRS,Food/refreshment - meetings,TESCO STORE 2143,20/02/2018,10.45
CORPORATE AFFAIRS,Use of Public Transport,UBER DOKDE HELP.UBER.COM,20/02/2018,5.28
CORPORATE AFFAIRS,Use of Public Transport,UBER JLWJC HELP.UBER.COM,20/02/2018,5.00
HOUSING MANAGEMENT SERVICES,Food/refreshment - meetings,SAINSBURYS,20/02/2018,303.35
HOUSING MANAGEMENT SERVICES,Food/refreshment - meetings,SAINSBURYS,20/02/2018,270.42
LIBRARIES & ARCHIVE,Education-Library Books,ECRA,20/02/2018,29.95
LIBRARIES & ARCHIVE,Education-Other,ARMOUR LOCK AND SAFE,20/02/2018,4.00
NEIGHBOURHOODS,Building-Timber,SCREWFIX,20/02/2018,175.00
NEIGHBOURHOODS,Sports Equipment,WWW.ANGLINGDIRECT.CO.UK,20/02/2018,20.00
"PLANNING, TRANSPORT & DEVELOPMENT",Conference Expenses,HOTELS.COM145591784261,20/02/2018,371.99
POLICY & COMMUNICATIONS,IT Software,ADOBE CREATIVE CLOUD,20/02/2018,59.00
BUSINESS SUPPORT,Catering Food & Drink,MARKS&SPENCER PLC.,21/02/2018,48.70
BUSINESS SUPPORT,Catering Food & Drink,MARKS&SPENCER PLC.,21/02/2018,29.00
BUSINESS SUPPORT,Use of Public Transport,WWW.LONDONNETCARS.CO.U,21/02/2018,50.00
CORPORATE AFFAIRS,Catering Food & Drink,TESCO STORES 5342,21/02/2018,39.37
CORPORATE AFFAIRS,Stationery,SIGNET SIGNS LIMITED,21/02/2018,106.00
CORPORATE AFFAIRS,Stationery,AMAZON SVCS EU-UK AMAZON.,21/02/2018,84.14
CORPORATE AFFAIRS,Travel/Subsistence,LUL TICKET MACHINE,21/02/2018,50.00
CORPORATE AFFAIRS,Travel/Subsistence,LUL TICKET MACHINE,21/02/2018,50.00
CORPORATE AFFAIRS,Travel/Subsistence,LUL TICKET MACHINE,21/02/2018,50.00
CORPORATE AFFAIRS,Travel/Subsistence,LUL TICKET MACHINE,21/02/2018,50.00
EARLY HELP,Books/Publications/Resources,WWW.ARGOS.CO.UK,21/02/2018,131.95
EARLY HELP,Books/Publications/Resources,WWW.ARGOS.CO.UK,21/02/2018,86.94
INTERNAL AUDIT,Education-Library Books,Amazon UK Marketplace,21/02/2018,36.20
INTERNAL AUDIT,Education-Library Books,Amazon UK Marketplace,21/02/2018,32.65
INTERNAL AUDIT,Financial Services,GRO HM PASSPORT OFFICE,21/02/2018,-9.25
INTERNAL AUDIT,Travel/Subsistence,OYSTER AUTOTOPUP,21/02/2018,80.00
INTERNAL AUDIT,Travel/Subsistence,OYSTER BUS AUTOTOP,21/02/2018,40.00
LIBRARIES & ARCHIVE,Education-Library Books,AMAZON EU AMAZON.CO.UK,21/02/2018,28.77
LIBRARIES & ARCHIVE,Education-Library Books,AMAZON SVCS EU-UK AMAZON.,21/02/2018,-8.71
LIBRARIES & ARCHIVE,Education-Library Books,AMAZON SVCS EU-UK AMAZON.,21/02/2018,-6.28
LIBRARIES & ARCHIVE,Education-Library Books,AMAZON SVCS EU-UK AMAZON.,21/02/2018,17.40
LIBRARIES & ARCHIVE,Education-Library Books,Amazon UK Marketplace,21/02/2018,5.73
LIBRARIES & ARCHIVE,Education-Library Books,Amazon UK Marketplace,21/02/2018,2.80
LIBRARIES & ARCHIVE,Education-Library Books,Amazon UK Retail,21/02/2018,19.86
LIBRARIES & ARCHIVE,Education-Other,GV MEDIA GROUP LTD,21/02/2018,57.00
YOUTH OFFENDING SERVICE,Catering Food & Drink,TESCO STORE 2143,21/02/2018,23.98
YOUTH OFFENDING SERVICE,Travel/Subsistence,BRIXTONHILL EXPRESS,21/02/2018,130.00
YOUTH OFFENDING SERVICE,Travel/Subsistence,EXPRESS NEWS,21/02/2018,90.00
BUSINESS SUPPORT,Use of Public Transport,OYSTER RENEW WEB,22/02/2018,30.00
CHILDREN LOOKED AFTER,Domestic Goods-Other,AO RETAIL LIMITED,22/02/2018,-15.00
CHILDREN LOOKED AFTER,Facilities-Design & Photography,SNAPFISH UK *,22/02/2018,36.24
CHILDREN LOOKED AFTER,Facilities-Storage,KATOR STORAGE LTD,22/02/2018,134.40
CHILDREN LOOKED AFTER,Financial Services,CASH ADVANCE FEE,22/02/2018,3.84
CHILDREN LOOKED AFTER,Financial Services,HSBC/BRIXTON RD I1,22/02/2018,130.00
CHILDREN LOOKED AFTER,Furniture-Domestic Furniture,IKEA ONLINE,22/02/2018,-35.00
CHILDREN LOOKED AFTER,Haulage,www.anyvan.com,22/02/2018,583.79
CHILDREN LOOKED AFTER,Taxi Fares,A2B RADIO CARS LIMITED,22/02/2018,390.00
CHILDREN LOOKED AFTER,Taxi Fares,5000 CARS,22/02/2018,36.50
CHILDREN LOOKED AFTER,Travel/Subsistence,OYSTER AUTOTOPUP,22/02/2018,20.00
CHILDREN LOOKED AFTER,Travel/Subsistence,OYSTER BUS AUTOTOP,22/02/2018,20.00
CHILDREN LOOKED AFTER,Travel/Subsistence,OYSTER AUTOTOPUP,22/02/2018,20.00
CHILDREN LOOKED AFTER,Travel/Subsistence,OYSTER AUTOTOPUP,22/02/2018,20.00
CHILDREN LOOKED AFTER,Travel/Subsistence,OYSTER AUTOTOPUP,22/02/2018,20.00
CHILDREN LOOKED AFTER,Travel/Subsistence,OYSTER AUTOTOPUP,22/02/2018,40.00
CHILDREN LOOKED AFTER,Travel/Subsistence,OYSTER BUS AUTOTOP,22/02/2018,60.00
CHILDREN LOOKED AFTER,Travel/Subsistence,OYSTER BUS AUTOTOP,22/02/2018,40.00
CHILDREN LOOKED AFTER,Travel/Subsistence,OYSTER BUS AUTOTOP,22/02/2018,20.00
CHILDREN LOOKED AFTER,Travel/Subsistence,OYSTER BUS AUTOTOP,22/02/2018,40.00
CHILDREN LOOKED AFTER,Travel/Subsistence,OYSTER BUS AUTOTOP,22/02/2018,20.00
CHILDREN LOOKED AFTER,Travel/Subsistence,TRAINLINE,22/02/2018,111.50
CHILDREN LOOKED AFTER,Travel/Subsistence,MAURITIUS LUXURY HOLIDAY,22/02/2018,"2,601.00"
CHILDREN LOOKED AFTER,Travel/Subsistence,OYSTER AUTOTOPUP,22/02/2018,20.00
CHILDREN LOOKED AFTER,Travel/Subsistence,OYSTER BUS AUTOTOP,22/02/2018,20.00
LIBRARIES & ARCHIVE,Education-Other,AMAZON SVCS EU-UK AMAZON.,22/02/2018,12.49
LIBRARIES & ARCHIVE,Education-Other,AMAZON SVCS EU-UK AMAZON.,22/02/2018,19.98
LIBRARIES & ARCHIVE,Education-Other,AMAZON SVCS EU-UK AMAZON.,22/02/2018,40.99
MENTAL HEALTH,Accommodation,Hotel on Booking.com,22/02/2018,175.00
MENTAL HEALTH,Travel/Subsistence,VIRGIN TRAINS,22/02/2018,291.00
NEIGHBOURHOODS,Building-Timber,ACRE LANE BUILDERS,22/02/2018,143.60
NEIGHBOURHOODS,Building-Timber,ACRE LANE TIMBER LTD,22/02/2018,82.93
NEIGHBOURHOODS,Building-Timber,SELCO TRADING CTR,22/02/2018,35.56
"PLANNING, TRANSPORT & DEVELOPMENT",Cycles Purchase,APEX CYCLES,22/02/2018,449.90
"PLANNING, TRANSPORT & DEVELOPMENT",Stationery,Amazon UK Marketplace,22/02/2018,7.99
"PLANNING, TRANSPORT & DEVELOPMENT",Stationery,Amazon UK Retail,22/02/2018,10.00
"PLANNING, TRANSPORT & DEVELOPMENT",Stationery,IZ *BRIXTON POUND CIC,22/02/2018,105.00
"PLANNING, TRANSPORT & DEVELOPMENT",Travel/Subsistence,OYSTER AUTOTOPUP,22/02/2018,20.00
"PLANNING, TRANSPORT & DEVELOPMENT",Travel/Subsistence,OYSTER AUTOTOPUP,22/02/2018,20.00
"PLANNING, TRANSPORT & DEVELOPMENT",Travel/Subsistence,OYSTER AUTOTOPUP,22/02/2018,20.00
"PLANNING, TRANSPORT & DEVELOPMENT",Travel/Subsistence,OYSTER BUS AUTOTOP,22/02/2018,20.00
"PLANNING, TRANSPORT & DEVELOPMENT",Travel/Subsistence,OYSTER BUS AUTOTOP,22/02/2018,40.00
"PLANNING, TRANSPORT & DEVELOPMENT",Travel/Subsistence,OYSTER RENEW WEB,22/02/2018,40.00
"PLANNING, TRANSPORT & DEVELOPMENT",Travel/Subsistence,OYSTER RENEW WEB,22/02/2018,40.00
"PLANNING, TRANSPORT & DEVELOPMENT",Travel/Subsistence,OYSTER RENEW WEB,22/02/2018,20.00
"PLANNING, TRANSPORT & DEVELOPMENT",Travel/Subsistence,TFL CYCLE HIRE,22/02/2018,1.67
"PLANNING, TRANSPORT & DEVELOPMENT",Travel/Subsistence,TRAINLINE,22/02/2018,34.78
SCHOOL & EDUCATION IMPROVEMENT SERVICE,Travel/Subsistence,OYSTER RENEW WEB,22/02/2018,10.00
SCHOOL & EDUCATION IMPROVEMENT SERVICE,Travel/Subsistence,OYSTER RENEW WEB,22/02/2018,10.00
SCHOOL & EDUCATION IMPROVEMENT SERVICE,Travel/Subsistence,OYSTER RENEW WEB,22/02/2018,10.00
SCHOOL & EDUCATION IMPROVEMENT SERVICE,Travel/Subsistence,OYSTER RENEW WEB,22/02/2018,30.00
SCHOOL & EDUCATION IMPROVEMENT SERVICE,Travel/Subsistence,OYSTER RENEW WEB,22/02/2018,30.00
BUSINESS SUPPORT,Charges and Penalties,GRO HM PASSPORT OFFICE,23/02/2018,9.25
BUSINESS TRANSFORMATION,Mail Services-Postage,ROYAL MAIL,23/02/2018,"1,960.00"
DAY CENTRES,Catering Food & Drink,TESCO STORE 2764,23/02/2018,151.79
DAY CENTRES,Catering Food & Drink,ICELAND,23/02/2018,155.38
DAY CENTRES,Catering Food & Drink,MN WEST NORWOOD HALAL,23/02/2018,37.17
DAY CENTRES,Catering Food & Drink,SAINSBURY'S,23/02/2018,9.90
LIBRARIES & ARCHIVE,Education-Other,Amazon UK Marketplace,23/02/2018,12.49
CHILDREN SAFEGUARDING & ASSESSMENTS,Use of Public Transport,OYSTER AUTOTOPUP,25/02/2018,20.00
CHILDREN SAFEGUARDING & ASSESSMENTS,Use of Public Transport,OYSTER AUTOTOPUP,25/02/2018,20.00
NEIGHBOURHOODS,Cemetery & Crematorium,Amazon UK Marketplace,25/02/2018,19.99
BUSINESS SUPPORT,Use of Public Transport,OYSTER RENEW WEB,26/02/2018,30.00
COMMUNITY SAFETY,Stationery,Amazon UK Marketplace,26/02/2018,204.74
HOUSING MANAGEMENT SERVICES,Books/Publications/Resources,TESCO STORES 4342,26/02/2018,22.00
HOUSING MANAGEMENT SERVICES,Catering Food & Drink,TESCO STORE 2764,26/02/2018,90.00
HOUSING MANAGEMENT SERVICES,Catering Food & Drink,TESCO STORE 2764,26/02/2018,75.00
HOUSING MANAGEMENT SERVICES,Catering Food & Drink,TESCO STORE 2764,26/02/2018,90.00
HOUSING MANAGEMENT SERVICES,Catering Food & Drink,TESCO STORE 2764,26/02/2018,60.00
HOUSING MANAGEMENT SERVICES,Catering Food & Drink,TESCO STORE 2764,26/02/2018,90.00
LIBRARIES & ARCHIVE,Books/Publications/Resources,SAINSBURYS CASH,26/02/2018,160.00
LIBRARIES & ARCHIVE,Books/Publications/Resources,ARGOS LTD,26/02/2018,19.96
LIBRARIES & ARCHIVE,Travel/Subsistence,PP*UPTOWN CARS,26/02/2018,17.00
NEIGHBOURHOODS,Sports Equipment,ANGLINGDIRECT.CO.U,26/02/2018,200.00
NEIGHBOURHOODS,Sports Equipment,ANGLINGDIRECT.CO.U,26/02/2018,200.00
NEIGHBOURHOODS,Sports Equipment,ANGLINGDIRECT.CO.U,26/02/2018,200.00
NEIGHBOURHOODS,Sports Equipment,ANGLINGDIRECT.CO.U,26/02/2018,200.00
PROPERTY & FINANCIAL TRANSACTION SERVICES,Food/refreshment - meetings,TESCO STORES 5999,26/02/2018,37.16
PROPERTY & FINANCIAL TRANSACTION SERVICES,Food/refreshment - meetings,TESCO STORES 5999,26/02/2018,31.71
PROPERTY & FINANCIAL TRANSACTION SERVICES,Food/refreshment - meetings,TESCO STORES 5999,26/02/2018,31.71
PROPERTY & FINANCIAL TRANSACTION SERVICES,Use of Public Transport,OYSTER RENEW WEB,26/02/2018,20.00
BUSINESS SUPPORT,Taxi Fares,ABEX5BB38 LONDON NET C,27/02/2018,44.30
BUSINESS SUPPORT,Taxi Fares,ABEX5BC82 LONDON NET C,27/02/2018,44.30
BUSINESS SUPPORT,Travel/Subsistence,OYSTER RENEW WEB,27/02/2018,30.00
BUSINESS SUPPORT,Use of Public Transport,OYSTER RENEW WEB,27/02/2018,30.00
CHILDREN LOOKED AFTER,Domestic Goods-Other,CARD FACTORY,27/02/2018,64.57
CHILDREN LOOKED AFTER,Furniture-Domestic Furniture,BED CARE LTD,27/02/2018,503.00
CHILDREN LOOKED AFTER,Mail Services-Postage,POST OFFICE SELF SERVI,27/02/2018,24.20
EARLY HELP,Books/Publications/Resources,MOTHERCARE UK LTD,27/02/2018,80.00
FINANCIAL PLANNING AND MANAGEMENT,Domestic Goods-Other,WWW.ARGOS.CO.UK,27/02/2018,525.13
HUMAN RESOURCES & ORGANISATIONAL DEVELOPMENT,Financial Services,UKBA9060895798,27/02/2018,"3,699.00"
LIBRARIES & ARCHIVE,Books/Publications/Resources,CASH ADVANCE FEE,27/02/2018,4.72
LIBRARIES & ARCHIVE,Education-Other,Amazon UK Marketplace,27/02/2018,43.98
LIBRARIES & ARCHIVE,Travel/Subsistence,PP*UPTOWN CARS,27/02/2018,17.00
NEIGHBOURHOODS,Charges and Penalties,WWW.BRITISHGAS.CO.,27/02/2018,180.00
NEIGHBOURHOODS,Legal Services-Other,WWW.PASTDUECREDIT.CO.U,27/02/2018,61.15
REVENUE & BENEFITS,Use of Public Transport,OYSTER AUTOSETTLE,27/02/2018,20.00
EARLY HELP,Books/Publications/Resources,PAYPAL *L. A. OF IT,28/02/2018,450.00
FINANCIAL PLANNING AND MANAGEMENT,Travel/Subsistence,OYSTER BUS AUTOTOP,28/02/2018,20.00
INTERNAL AUDIT,Education-Other,INST.OF CHARTERD ACCOU,28/02/2018,198.00
MUSIC SERVICES,Education-Library Books,Amazon UK Marketplace,28/02/2018,24.15
PUBLIC HEALTH - ADULTS,Accommodation,NOVOTEL,28/02/2018,260.40
PUBLIC HEALTH - ADULTS,Conference Expenses,AMAZON SVCS EU-UK AMAZON.,28/02/2018,20.96
PUBLIC HEALTH - ADULTS,Education-Other,WWW.CIMAGLOBAL.COM,28/02/2018,70.00
PUBLIC HEALTH - ADULTS,Healthcare Equipment,FREEDOMS SHOP,28/02/2018,"1,363.52"
PUBLIC HEALTH - ADULTS,Healthcare Services,ON AIR MEDIA GROUP LTD,28/02/2018,"2,100.00"
PUBLIC HEALTH - ADULTS,IT Software-Customised,WWWEUKHOSTCOM,28/02/2018,29.94
PUBLIC HEALTH - ADULTS,Travel/Subsistence,VIRGIN TRAINS,28/02/2018,68.00
SENIOR MANAGEMENT - ADULTS & PUBLIC HEALTH,Accommodation,PREMIER INN44537335,28/02/2018,123.98
SENIOR MANAGEMENT - ADULTS & PUBLIC HEALTH,Travel/Subsistence,EAST COAST MAINLINE CO,28/02/2018,140.00
BUSINESS SUPPORT,Use of Public Transport,OYSTER RENEW WEB,01/03/2018,30.00
BUSINESS SUPPORT,Use of Public Transport,OYSTER RENEW WEB,01/03/2018,30.00
CHILDREN LOOKED AFTER,Travel/Subsistence,OYSTER AUTOTOPUP,01/03/2018,40.00
CHILDREN LOOKED AFTER,Travel/Subsistence,OYSTER AUTOTOPUP,01/03/2018,60.00
CHILDREN LOOKED AFTER,Travel/Subsistence,OYSTER AUTOTOPUP,01/03/2018,20.00
CHILDREN LOOKED AFTER,Travel/Subsistence,OYSTER AUTOTOPUP,01/03/2018,40.00
CHILDREN LOOKED AFTER,Travel/Subsistence,OYSTER BUS AUTOTOP,01/03/2018,80.00
CHILDREN LOOKED AFTER,Travel/Subsistence,OYSTER BUS AUTOTOP,01/03/2018,40.00
CHILDREN LOOKED AFTER,Travel/Subsistence,OYSTER BUS AUTOTOP,01/03/2018,20.00
CHILDREN LOOKED AFTER,Travel/Subsistence,OYSTER BUS AUTOTOP,01/03/2018,60.00
CORPORATE AFFAIRS,Catering Food & Drink,TESCO STORES 5342,01/03/2018,11.03
CORPORATE AFFAIRS,Travel/Subsistence,GWR WEBSALES,01/03/2018,127.60
CORPORATE AFFAIRS,Travel/Subsistence,LUL TICKET MACHINE,01/03/2018,50.00
CORPORATE AFFAIRS,Travel/Subsistence,LUL TICKET MACHINE,01/03/2018,50.00
CORPORATE AFFAIRS,Travel/Subsistence,LUL TICKET MACHINE,01/03/2018,50.00
LIBRARIES & ARCHIVE,Education-Library Books,AMAZON SVCS EU-UK AMAZON.,01/03/2018,11.82
LIBRARIES & ARCHIVE,Education-Library Books,AMAZON SVCS EU-UK AMAZON.,01/03/2018,2.80
LIBRARIES & ARCHIVE,Education-Library Books,AMAZON SVCS EU-UK AMAZON.,01/03/2018,29.07
LIBRARIES & ARCHIVE,Education-Library Books,Amazon UK Marketplace,01/03/2018,16.56
LIBRARIES & ARCHIVE,Education-Library Books,Amazon UK Retail,01/03/2018,17.02
OTHER - ADULTS,Banquet & Catering,WWW.EVENTSUPPLIES.CO.U,01/03/2018,123.12
OTHER - ADULTS,Catering Food & Drink,TESCO STORES 5999,01/03/2018,49.26
OTHER - ADULTS,Domestic Goods-Other,AMAZON EU AMAZON.CO.UK,01/03/2018,26.16
OTHER - ADULTS,Healthcare Equipment,WWW.OXFORDMEDICAL.CO.U,01/03/2018,52.08
REVENUE & BENEFITS,Legal Services-Other,HMCOURTS-SERVICE.G,01/03/2018,"2,589.00"
REVENUE & BENEFITS,Travel/Subsistence,OYSTER AUTOTOPUP,01/03/2018,20.00
SCHOOL & EDUCATION IMPROVEMENT SERVICE,Catering Food & Drink,MARKS&SPENCER PLC,01/03/2018,35.00
BUSINESS SUPPORT,Books/Publications/Resources,THE POST OFFICE,02/03/2018,39.00
POLICY & COMMUNICATIONS,IT Services,NATIONBUILDER,03/03/2018,164.43
POLICY & COMMUNICATIONS,IT Services,NATIONBUILDER,03/03/2018,66.61
DAY CENTRES,Catering Food & Drink,ICELAND,05/03/2018,22.16
DAY CENTRES,Catering Food & Drink,MN WEST NORWOOD HALAL,05/03/2018,66.90
NEIGHBOURHOODS,Building-Plumbing,SCREWFIX DIRECT,05/03/2018,13.53
NEIGHBOURHOODS,Building-Plumbing,SCREWFIX,05/03/2018,-0.72
OTHER - ADULTS,Catering Food & Drink,TESCO STORES 5999,05/03/2018,112.69
VALUATION & STRATEGIC PROPERTY SERVICES,Utilities,WWW.BRITISHGAS.CO.,05/03/2018,150.00
CORPORATE AFFAIRS,Catering Food & Drink,TESCO STORES 5342,06/03/2018,19.94
CORPORATE AFFAIRS,Travel/Subsistence,LUL TICKET MACHINE,06/03/2018,50.00
CORPORATE AFFAIRS,Travel/Subsistence,TICKETOFFICESALE,06/03/2018,59.50
DAY CENTRES,Organised Activities,DEBT RECOVERY PLUS LTD R,06/03/2018,160.00
EMPLOYMENT & ENTERPRISE - E&L,Catering Food & Drink,MARKS&SPENCER PLC,06/03/2018,27.50
EMPLOYMENT & ENTERPRISE - E&L,Catering Food & Drink,MARKS&SPENCER PLC SACA,06/03/2018,28.50
EMPLOYMENT & ENTERPRISE - E&L,Catering Food & Drink,MARKS&SPENCER PLC SACA,06/03/2018,4.00
EMPLOYMENT & ENTERPRISE - E&L,Catering Food & Drink,SAINSBURYS S/MKTS,06/03/2018,6.25
EMPLOYMENT & ENTERPRISE - E&L,Catering Food & Drink,SAINSBURYS S/MKTS,06/03/2018,24.30
EMPLOYMENT & ENTERPRISE - E&L,Consultancy-Business,HYDE HOUSING ASSOCIATI,06/03/2018,100.00
EMPLOYMENT & ENTERPRISE - E&L,Domestic Goods-Other,ECO UK MERCHANT LTD,06/03/2018,16.00
EMPLOYMENT & ENTERPRISE - E&L,Domestic Goods-Other,GIFTVOUCHERSHOP.CO.UK,06/03/2018,667.00
EMPLOYMENT & ENTERPRISE - E&L,Taxi Fares,WWW.ADDISONLEE.COM,06/03/2018,13.55
HOUSING MANAGEMENT SERVICES,Building-General,HOWARD BROS. (CAMBERWE,06/03/2018,187.88
HOUSING MANAGEMENT SERVICES,Building-General,LEYLAND SDM CLAPHAM HIGH,06/03/2018,24.98
HOUSING MANAGEMENT SERVICES,Building-Timber,B & Q 1037,06/03/2018,70.03
HOUSING MANAGEMENT SERVICES,Building-Timber,B & Q 1037,06/03/2018,55.91
HOUSING MANAGEMENT SERVICES,Building-Timber,BLISSETTS BUILDERS SUPPLI,06/03/2018,9.17
HOUSING MANAGEMENT SERVICES,Building-Timber,C BREWER & SONS,06/03/2018,50.00
HOUSING MANAGEMENT SERVICES,Catering Food & Drink,TESCO STORES 6231,06/03/2018,10.32
HOUSING MANAGEMENT SERVICES,Catering Food & Drink,WM MORRISON PLC,06/03/2018,26.88
HOUSING MANAGEMENT SERVICES,Consultancy-Business,ETC VENUES LTD,06/03/2018,665.60
HOUSING MANAGEMENT SERVICES,Consultancy-Business,FORTRESS MASTER LOCKSMITH,06/03/2018,11.95
HOUSING MANAGEMENT SERVICES,Facilities-Market Research,Amazon Prime,06/03/2018,7.99
HOUSING MANAGEMENT SERVICES,Facilities-Printing,Amazon UK Retail,06/03/2018,24.95
HOUSING MANAGEMENT SERVICES,Financial Services,GRO HM PASSPORT OFFICE,06/03/2018,-9.25
HOUSING MANAGEMENT SERVICES,IT Consumables,INTELLISOFTWARE LTD,06/03/2018,52.80
HOUSING MANAGEMENT SERVICES,Organised Activities,IZ *OVAL SHOE REPA,06/03/2018,4.25
HOUSING MANAGEMENT SERVICES,Organised Activities,IZ *oval shoe repairs,06/03/2018,12.20
HOUSING MANAGEMENT SERVICES,Travel/Subsistence,LUL TICKET MACHINE,06/03/2018,100.00
HOUSING MANAGEMENT SERVICES,Travel/Subsistence,LUL TICKET MACHINE,06/03/2018,100.00
HOUSING MANAGEMENT SERVICES,Travel/Subsistence,LUL TICKET MACHINE,06/03/2018,120.00
HOUSING MANAGEMENT SERVICES,Works-Construction/Materials,LOCKSMITHS AT THE TOOL,06/03/2018,15.00
HOUSING NEEDS,Furniture-Domestic Furniture,WAYFAIR STORES LIM,06/03/2018,74.99
HOUSING NEEDS,Furniture-Domestic Furniture,WWW.HAPPYBEDS.CO.UK,06/03/2018,338.73
HOUSING NEEDS,Furniture-Domestic Furniture,WWW.IKEA.COM,06/03/2018,336.63
LIBRARIES & ARCHIVE,Books/Publications/Resources,PRIME STORE,06/03/2018,341.95
MENTAL HEALTH,Legal Services-Other,HMCOURTS-SERVICE.G,06/03/2018,150.00
MENTAL HEALTH,Legal Services-Other,HMCOURTS-SERVICE.G,06/03/2018,75.00
NEIGHBOURHOODS,Cemetery & Crematorium,AMAZON SVCS EU-UK AMAZON.,06/03/2018,34.65
QUALITY ASSURANCE & PERFORMANCE,Conference Expenses,PAYPAL *CMPVAILLANT,06/03/2018,220.00
QUALITY ASSURANCE & PERFORMANCE,Conference Expenses,TEACHERS2PARENTS,06/03/2018,80.00
BUSINESS SUPPORT,Domestic Goods-Other,POUNDLAND,07/03/2018,28.00
BUSINESS SUPPORT,Financial Services-Grants,BRITISH HEART FOUNDATI,07/03/2018,135.00
BUSINESS SUPPORT,Financial Services-Grants,TRINTIY HOSPICE STREAT,07/03/2018,5.00
CHILDREN LOOKED AFTER,Mail Services-Postage,POST OFFICE SELF SERVI,07/03/2018,2.68
CHILDREN LOOKED AFTER,Consultancy-Other,TVLICENSING.CO.UK,07/03/2018,147.00
CHILDREN LOOKED AFTER,Domestic Goods-Other,WWW.ARGOS.CO.UK,07/03/2018,260.91
CHILDREN LOOKED AFTER,Domestic Goods-Other,CURRYS ONLINE,07/03/2018,-674.98
CHILDREN LOOKED AFTER,Domestic Goods-Other,CURRYS ONLINE,07/03/2018,199.99
CHILDREN LOOKED AFTER,Domestic Goods-Other,WWW.ARGOS.CO.UK,07/03/2018,"1,745.49"
CHILDREN LOOKED AFTER,Domestic Goods-Other,WWW.ARGOS.CO.UK,07/03/2018,126.97
CHILDREN LOOKED AFTER,Taxi Fares,A2B RADIO CARS LIMITED,07/03/2018,97.00
CHILDREN LOOKED AFTER,Taxi Fares,GREYHOUND CARS LTD,07/03/2018,42.60
CHILDREN LOOKED AFTER,Taxi Fares,GREYHOUND CARS LTD,07/03/2018,-42.60
CHILDREN LOOKED AFTER,Telecommunications,SKY SUBSCRIPTION,07/03/2018,115.00
CHILDREN LOOKED AFTER,Travel/Subsistence,OYSTER AUTOTOPUP,07/03/2018,20.00
CHILDREN LOOKED AFTER,Travel/Subsistence,OYSTER BUS AUTOTOP,07/03/2018,20.00
CHILDREN LOOKED AFTER,Travel/Subsistence,OYSTER BUS AUTOTOP,07/03/2018,20.00
CHILDREN LOOKED AFTER,Travel/Subsistence,OYSTER BUS AUTOTOP,07/03/2018,20.00
CHILDREN SAFEGUARDING & ASSESSMENTS,Domestic Goods-Other,WWW.ARGOS.CO.UK,07/03/2018,71.93
CHILDREN SAFEGUARDING & ASSESSMENTS,Domestic Goods-Other,ARGOS,07/03/2018,19.99
CHILDREN SAFEGUARDING & ASSESSMENTS,Domestic Goods-Other,ARGOS,07/03/2018,19.99
CHILDREN SAFEGUARDING & ASSESSMENTS,Financial Services,GRO HM PASSPORT OFFICE,07/03/2018,93.60
CHILDREN SAFEGUARDING & ASSESSMENTS,Financial Services,GRO HM PASSPORT OFFICE,07/03/2018,0.00
CHILDREN SAFEGUARDING & ASSESSMENTS,Travel/Subsistence,OYSTER RENEW WEB,07/03/2018,30.00
CHILDREN SAFEGUARDING & ASSESSMENTS,Travel/Subsistence,OYSTER RENEW WEB,07/03/2018,30.00
CHILDREN SAFEGUARDING & ASSESSMENTS,Travel/Subsistence,OYSTER RENEW WEB,07/03/2018,30.00
CHILDREN SAFEGUARDING & ASSESSMENTS,Travel/Subsistence,OYSTER AUTOTOPUP,07/03/2018,40.00
CHILDREN SAFEGUARDING & ASSESSMENTS,Travel/Subsistence,OYSTER AUTOTOPUP,07/03/2018,40.00
CHILDREN SAFEGUARDING & ASSESSMENTS,Travel/Subsistence,OYSTER BUS AUTOTOP,07/03/2018,40.00
CHILDREN SAFEGUARDING & ASSESSMENTS,Travel/Subsistence,OYSTER RENEW WEB,07/03/2018,60.00
COMMUNITY SAFETY,Food/refreshment - meetings,SAINSBURYS S/MKTS,07/03/2018,480.65
COMMUNITY SAFETY,Professional subscriptions,VAUXHALL CITY FARM,07/03/2018,207.30
COMMUNITY SAFETY,Toll charges,ZIPCAR,07/03/2018,40.00
COMMUNITY SAFETY,Toll charges,ZIPCAR,07/03/2018,60.00
DAY CENTRES,Catering Food & Drink,ICELAND,07/03/2018,221.45
FINANCIAL PLANNING AND MANAGEMENT,Travel/Subsistence,OYSTER AUTOTOPUP,07/03/2018,20.00
HOUSING MANAGEMENT SERVICES,Catering Food & Drink,TESCO STORES 6231,07/03/2018,5.05
NEIGHBOURHOODS,Furniture-Office Furniture,WWW.POSTURITE.CO.UK,07/03/2018,125.88
NEIGHBOURHOODS,Furniture-Office Furniture,WWW.POSTURITE.CO.UK,07/03/2018,-65.94
NEIGHBOURHOODS,Furniture-Office Furniture,WWW.POSTURITE.CO.UK,07/03/2018,71.94
NEIGHBOURHOODS,Travel/Subsistence,LUL TICKET MACHINE,07/03/2018,150.00
NEIGHBOURHOODS,Travel/Subsistence,LUL TICKET MACHINE,07/03/2018,100.00
NEIGHBOURHOODS,Travel/Subsistence,LUL TICKET MACHINE,07/03/2018,100.00
NEIGHBOURHOODS,Travel/Subsistence,LUL TICKET MACHINE,07/03/2018,80.00
NEIGHBOURHOODS,Travel/Subsistence,LUL TICKET MACHINE,07/03/2018,150.00
NEIGHBOURHOODS,Building-Tools,SCREWFIX DIRECT,07/03/2018,25.00
QUALITY ASSURANCE & PERFORMANCE,Food/refreshment - meetings,ICELAND,07/03/2018,10.55
QUALITY ASSURANCE & PERFORMANCE,Food/refreshment - meetings,JAMAICA SPICE BAKERY L,07/03/2018,16.00
QUALITY ASSURANCE & PERFORMANCE,Food/refreshment - meetings,MARKS&SPENCER PLC SACA,07/03/2018,15.75
QUALITY ASSURANCE & PERFORMANCE,Food/refreshment - meetings,SAINSBURYS S/MKTS,07/03/2018,7.85
BUSINESS SUPPORT,Charges and Penalties,BRIXTON BEDS,08/03/2018,326.00
BUSINESS SUPPORT,Charges and Penalties,HM PASSPORT OFFICE,08/03/2018,75.50
BUSINESS SUPPORT,Charges and Penalties,WWW.MINICABS.CO.UK,08/03/2018,91.00
BUSINESS SUPPORT,Charges and Penalties,WWW.MINICABS.CO.UK,08/03/2018,-91.00
BUSINESS SUPPORT,Stationery,THE POST OFFICE,08/03/2018,17.30
BUSINESS SUPPORT,Use of Public Transport,OYSTER RENEW WEB,08/03/2018,30.00
CHILDREN LOOKED AFTER,Catering Food & Drink,MARKS&SPENCER PLC SACA,08/03/2018,70.95
CHILDREN LOOKED AFTER,Consultancy-Business,PASS / LICENSE FEE,08/03/2018,112.00
CHILDREN LOOKED AFTER,Domestic Goods-Other,POUNDLAND LTD,08/03/2018,16.10
CHILDREN LOOKED AFTER,Financial Services,GRO HM PASSPORT OFFICE,08/03/2018,32.65
CHILDREN LOOKED AFTER,Financial Services,HM PASSPORT OFFICE,08/03/2018,46.00
CHILDREN LOOKED AFTER,Financial Services,RB KEN&CHELSEA,08/03/2018,25.00
CHILDREN LOOKED AFTER,Financial Services,HM PASSPORT OFFICE,08/03/2018,72.50
CHILDREN LOOKED AFTER,Mail Services-Postage,THE POST OFFICE,08/03/2018,6.45
CHILDREN LOOKED AFTER,Travel/Subsistence,OYSTER AUTOTOPUP,08/03/2018,20.00
CHILDREN LOOKED AFTER,Travel/Subsistence,OYSTER AUTOTOPUP,08/03/2018,20.00
CHILDREN LOOKED AFTER,Travel/Subsistence,OYSTER BUS AUTOTOP,08/03/2018,40.00
CHILDREN LOOKED AFTER,Travel/Subsistence,OYSTER BUS AUTOTOP,08/03/2018,20.00
CHILDREN LOOKED AFTER,Travel/Subsistence,OYSTER BUS AUTOTOP,08/03/2018,40.00
CHILDREN LOOKED AFTER,Travel/Subsistence,OYSTER BUS AUTOTOP,08/03/2018,40.00
CHILDREN LOOKED AFTER,Travel/Subsistence,FLYBE.COM CBXCST,08/03/2018,155.96
CHILDREN SAFEGUARDING & ASSESSMENTS,Catering Food & Drink,CRACKERJACK GOLD,08/03/2018,20.00
CHILDREN SAFEGUARDING & ASSESSMENTS,Use of Public Transport,GREYHOUND CARS LTD,08/03/2018,36.50
CHILDREN SAFEGUARDING & ASSESSMENTS,Use of Public Transport,GREYHOUND CARS LTD,08/03/2018,6.80
DAY CENTRES,Catering Food & Drink,LIDL UK,08/03/2018,17.75
DAY CENTRES,Catering Food & Drink,TESCO STORE 2143,08/03/2018,31.45
EARLY YEARS QUALITY IMPROVEMENT,IT Consumables,Amazon UK Marketplace,08/03/2018,2.99
EARLY YEARS QUALITY IMPROVEMENT,IT Consumables,Amazon UK Marketplace,08/03/2018,77.73
FINANCIAL PLANNING AND MANAGEMENT,Financial Services,LAND REGISTRY,08/03/2018,3.00
FINANCIAL PLANNING AND MANAGEMENT,Financial Services,LAND REGISTRY,08/03/2018,3.00
LIBRARIES & ARCHIVE,Education-Library Books,AMAZON SVCS EU-UK AMAZON.,08/03/2018,21.38
LIBRARIES & ARCHIVE,Education-Library Books,AMAZON SVCS EU-UK AMAZON.,08/03/2018,10.70
LIBRARIES & ARCHIVE,Education-Library Books,AMAZON SVCS EU-UK AMAZON.,08/03/2018,18.50
LIBRARIES & ARCHIVE,Education-Library Books,AMAZON SVCS EU-UK AMAZON.,08/03/2018,10.77
LIBRARIES & ARCHIVE,Education-Library Books,Amazon UK Marketplace,08/03/2018,23.21
LIBRARIES & ARCHIVE,Education-Library Books,Amazon UK Marketplace,08/03/2018,5.79
LIBRARIES & ARCHIVE,Education-Library Books,Amazon UK Marketplace,08/03/2018,6.07
LIBRARIES & ARCHIVE,Education-Library Books,Amazon UK Marketplace,08/03/2018,20.14
LIBRARIES & ARCHIVE,Education-Library Books,Amazon UK Retail,08/03/2018,12.49
LIBRARIES & ARCHIVE,Education-Library Books,AMAZON SVCS EU-UK AMAZON.,08/03/2018,6.70
NEIGHBOURHOODS,Building-Electrical,HALFORDS 0716,08/03/2018,97.92
NEIGHBOURHOODS,Building-General,FORTRESS MASTER LOCKSMITH,08/03/2018,47.08
NEIGHBOURHOODS,Building-General,FORTRESS MASTER LOCKSMITH,08/03/2018,114.58
NEIGHBOURHOODS,Building-Timber,HOMEBASE LTD 313,08/03/2018,24.09
NEIGHBOURHOODS,Horticultural-Other,BRADENHAM HALL,08/03/2018,127.04
NO RECOURSE TO PUBLIC FUNDS,Domestic Goods-Other,PAYPAL *INVESTIGATO,08/03/2018,475.00
POLICY & COMMUNICATIONS,Conference Expenses,PAYPAL *NADPO,08/03/2018,200.00
POLICY & COMMUNICATIONS,Consultancy-Business,EB *BLACK BREXIT WHAT,08/03/2018,175.00
POLICY & COMMUNICATIONS,Education-Other,DIGITMARKETINGINS,08/03/2018,"1,560.00"
POLICY & COMMUNICATIONS,Facilities-Advertising,FACEBK 7GGGRFJR62,08/03/2018,29.11
POLICY & COMMUNICATIONS,IT Services,AMAZON MKTPLACE PMTS,08/03/2018,122.73
POLICY & COMMUNICATIONS,IT Services,123 REG R/T,08/03/2018,19.99
POLICY & COMMUNICATIONS,IT Services,PANTHEON SYSTEMS INC,08/03/2018,18.71
POLICY & COMMUNICATIONS,IT Software,WWW.WEVIDEO.COM/CHARGE,08/03/2018,11.96
PROPERTY & FINANCIAL TRANSACTION SERVICES,Catering Food & Drink,KINGDOM COFFEE,08/03/2018,277.65
PROPERTY & FINANCIAL TRANSACTION SERVICES,Catering Food & Drink,TESCO STORE 3539,08/03/2018,-7.00
PROPERTY & FINANCIAL TRANSACTION SERVICES,Catering Food & Drink,TESCO STORES 5999,08/03/2018,37.16
PUBLIC HEALTH - ADULTS,Education-Other,FOM,08/03/2018,"2,232.00"
PUBLIC HEALTH - ADULTS,Education-Other,KEHF LIMITED,08/03/2018,"1,198.80"
PUBLIC HEALTH - ADULTS,Education-Other,PUBLIC HEALTH ENGLAND,08/03/2018,450.00
PUBLIC HEALTH - ADULTS,Education-Other,RSM.AC.UK (EVENTS),08/03/2018,55.00
DAY CENTRES,Financial Services,CAMBERWELL 2,09/03/2018,400.00
DAY CENTRES,Financial Services,CASH ADVANCE FEE,09/03/2018,11.80
MENTAL HEALTH,Financial Services,CASH ADVANCE FEE,09/03/2018,2.95
MENTAL HEALTH,Financial Services,NATIONWIDE /W0270Z,09/03/2018,60.00
MENTAL HEALTH,Travel/Subsistence,LONDON & SOUTH EAS,09/03/2018,30.60
MENTAL HEALTH,Travel/Subsistence,LONDON & SOUTH EAS,09/03/2018,-20.60
MENTAL HEALTH,Travel/Subsistence,LONDON & SOUTH EAS,09/03/2018,169.90
